Publisher Label,Publisher URI,"Supplier","Net Amount (£)","Organisational Unit","Merchant Category Code","Purpose","Payment Date"
"Wolverhampton City Council","http://opendatacommunities.org/id/metropolitan-district-council/wolverhampton","SHOWLITE LTD","199.94","Communications & Marketing - General","5399","Equipment - Purchase","30/06/2017"
"Wolverhampton City Council","http://opendatacommunities.org/id/metropolitan-district-council/wolverhampton","Amazon UK Marketplace","20.34","Headstart Phase 3","5942","Materials","30/06/2017"
"Wolverhampton City Council","http://opendatacommunities.org/id/metropolitan-district-council/wolverhampton","CITB","25.00","IMPACT","8220","Training Expenses","30/06/2017"
"Wolverhampton City Council","http://opendatacommunities.org/id/metropolitan-district-council/wolverhampton","NOTEMACHINE","100.00","Childrens with Disabilities Team","6011","No Recourse to Public Funds","30/06/2017"
"Wolverhampton City Council","http://opendatacommunities.org/id/metropolitan-district-council/wolverhampton","NOTEMACHINE","250.00","Childrens with Disabilities Team","6011","No Recourse to Public Funds","30/06/2017"
"Wolverhampton City Council","http://opendatacommunities.org/id/metropolitan-district-council/wolverhampton","ARGOS LTD","114.98","EIP Locality 8","5310","Grant Payments","30/06/2017"
"Wolverhampton City Council","http://opendatacommunities.org/id/metropolitan-district-council/wolverhampton","IKEA LIMITED","22.50","EIP Locality 8","5712","Grant Payments","30/06/2017"
"Wolverhampton City Council","http://opendatacommunities.org/id/metropolitan-district-council/wolverhampton","Amazon UK Marketplace","15.49","EIP Locality 8","5942","Stationery","30/06/2017"
"Wolverhampton City Council","http://opendatacommunities.org/id/metropolitan-district-council/wolverhampton","DECATHLON UK LTD","209.00","Public Health Support Costs","5941","Educ Trips, Holidays, Outings, Activity","30/06/2017"
"Wolverhampton City Council","http://opendatacommunities.org/id/metropolitan-district-council/wolverhampton","REGISTRARS OFFICE","60.00","Adoption and Residence Team & Allowances","8299","Services - Fees and Charges","30/06/2017"
"Wolverhampton City Council","http://opendatacommunities.org/id/metropolitan-district-council/wolverhampton","Amazon UK Marketplace","43.94","Strategic ICTS (ICT Serv Budget)","5942","Books","30/06/2017"
"Wolverhampton City Council","http://opendatacommunities.org/id/metropolitan-district-council/wolverhampton","Amazon UK Marketplace","13.18","Technical Support","5942","Books","30/06/2017"
"Wolverhampton City Council","http://opendatacommunities.org/id/metropolitan-district-council/wolverhampton","Amazon UK Marketplace","94.52","Global Budgets","5942","Books","30/06/2017"
"Wolverhampton City Council","http://opendatacommunities.org/id/metropolitan-district-council/wolverhampton","ITUNES.COM/BILL","34.88","Strategic ICTS (ICT Serv Budget)","5735","Computing - Purchase of Software","30/06/2017"
"Wolverhampton City Council","http://opendatacommunities.org/id/metropolitan-district-council/wolverhampton","TVLICENSING.CO.UK","122.50","LAC Transitions Team","7392","Client Allowances","30/06/2017"
"Wolverhampton City Council","http://opendatacommunities.org/id/metropolitan-district-council/wolverhampton","W M MORRISON PLC","17.02","Ernest Bold Court","5411","Provisions (Not for resale)","30/06/2017"
"Wolverhampton City Council","http://opendatacommunities.org/id/metropolitan-district-council/wolverhampton","Amazon Prime","7.99","Global Budgets","5968","Subscriptions","30/06/2017"
"Wolverhampton City Council","http://opendatacommunities.org/id/metropolitan-district-council/wolverhampton","BRITISH A","580.14","GEN Y City Transnational","3005","Public Transport","30/06/2017"
"Wolverhampton City Council","http://opendatacommunities.org/id/metropolitan-district-council/wolverhampton","TELFORD OCCUPATIONAL H","40.00","Central Training","7399","Training Expenses","30/06/2017"
"Wolverhampton City Council","http://opendatacommunities.org/id/metropolitan-district-council/wolverhampton","MAX SPIELMANN LTD","5.46","Mayoral Expenses","7221","Hospitality","30/06/2017"
"Wolverhampton City Council","http://opendatacommunities.org/id/metropolitan-district-council/wolverhampton","Amazon UK Marketplace","1.69","EIP Locality 3","5942","Financial Assistance In Exceptional Circ","30/06/2017"
"Wolverhampton City Council","http://opendatacommunities.org/id/metropolitan-district-council/wolverhampton","Amazon UK Marketplace","3.39","EIP Locality 3","5942","Financial Assistance In Exceptional Circ","30/06/2017"
"Wolverhampton City Council","http://opendatacommunities.org/id/metropolitan-district-council/wolverhampton","Amazon UK Marketplace","3.75","EIP Locality 3","5942","Financial Assistance In Exceptional Circ","30/06/2017"
"Wolverhampton City Council","http://opendatacommunities.org/id/metropolitan-district-council/wolverhampton","SOCIAL FRAMES","45.00","Management & Administration","7221","Equipment - Purchase","30/06/2017"
"Wolverhampton City Council","http://opendatacommunities.org/id/metropolitan-district-council/wolverhampton","ITUNES.COM/BILL","34.88","Strategic ICTS (ICT Serv Budget)","5735","Computing - Purchase of Software","30/06/2017"
"Wolverhampton City Council","http://opendatacommunities.org/id/metropolitan-district-council/wolverhampton","ITUNES.COM/BILL","34.88","Strategic ICTS (ICT Serv Budget)","5735","Computing - Purchase of Software","30/06/2017"
"Wolverhampton City Council","http://opendatacommunities.org/id/metropolitan-district-council/wolverhampton","ITUNES.COM/BILL","34.88","Strategic ICTS (ICT Serv Budget)","5735","Computing - Purchase of Software","30/06/2017"
"Wolverhampton City Council","http://opendatacommunities.org/id/metropolitan-district-council/wolverhampton","ITUNES.COM/BILL","34.88","Strategic ICTS (ICT Serv Budget)","5735","Computing - Purchase of Software","30/06/2017"
"Wolverhampton City Council","http://opendatacommunities.org/id/metropolitan-district-council/wolverhampton","ITUNES.COM/BILL","23.22","Strategic ICTS (ICT Serv Budget)","5735","Computing - Purchase of Software","30/06/2017"
"Wolverhampton City Council","http://opendatacommunities.org/id/metropolitan-district-council/wolverhampton","ITUNES.COM/BILL","34.88","Strategic ICTS (ICT Serv Budget)","5735","Computing - Purchase of Software","30/06/2017"
"Wolverhampton City Council","http://opendatacommunities.org/id/metropolitan-district-council/wolverhampton","ASDA HOME SHOPPING",".03","Upper Pendeford Farm Childrens Home","5411","Provisions (Not for resale)","30/06/2017"
"Wolverhampton City Council","http://opendatacommunities.org/id/metropolitan-district-council/wolverhampton","ASDA HOME SHOPPING","211.69","Upper Pendeford Farm Childrens Home","5411","Provisions (Not for resale)","30/06/2017"
"Wolverhampton City Council","http://opendatacommunities.org/id/metropolitan-district-council/wolverhampton","POUNDLAND LTD 1463","5.00","Admin & Support","5310","Equipment - Purchase","30/06/2017"
"Wolverhampton City Council","http://opendatacommunities.org/id/metropolitan-district-council/wolverhampton","HMCOURTS-SERVICE.G","20.00","Mental Health Assessment & Care Mgmt","9222","Services - Fees and Charges","30/06/2017"
"Wolverhampton City Council","http://opendatacommunities.org/id/metropolitan-district-council/wolverhampton","Trainline","190.82","Electoral Registration","4112","Public Transport","30/06/2017"
"Wolverhampton City Council","http://opendatacommunities.org/id/metropolitan-district-council/wolverhampton","TRAINLINE","-27.10","Curatorial - Cultural Learning","4112","Subsistence","30/06/2017"
"Wolverhampton City Council","http://opendatacommunities.org/id/metropolitan-district-council/wolverhampton","TRAINLINE","-11.80","Curatorial - Cultural Learning","4112","Subsistence","30/06/2017"
"Wolverhampton City Council","http://opendatacommunities.org/id/metropolitan-district-council/wolverhampton","EWETSUITS.COM","84.79","Towers Outdoor Education Centre","5941","Equipment - Purchase","30/06/2017"
"Wolverhampton City Council","http://opendatacommunities.org/id/metropolitan-district-council/wolverhampton","WWW.NOOKIE.CO.UK","74.87","Towers Outdoor Education Centre","5941","Equipment - Purchase","30/06/2017"
"Wolverhampton City Council","http://opendatacommunities.org/id/metropolitan-district-council/wolverhampton","ASDA SUPERSTORE","27.08","EIP Locality 5","5411","Provisions (Not for resale)","30/06/2017"
"Wolverhampton City Council","http://opendatacommunities.org/id/metropolitan-district-council/wolverhampton","BARCLAYS BANK PLC","250.00","CIN/CP Social Work Unit - Area 6","6011","Financial Assistance In Exceptional Circ","30/06/2017"
"Wolverhampton City Council","http://opendatacommunities.org/id/metropolitan-district-council/wolverhampton","WWW.MAPLIN.CO.UK","63.19","Technical Material","5732","Equipment - Purchase","30/06/2017"
"Wolverhampton City Council","http://opendatacommunities.org/id/metropolitan-district-council/wolverhampton","Amazon UK Marketplace","15.98","Members Expenses","5942","Equipment - Purchase","30/06/2017"
"Wolverhampton City Council","http://opendatacommunities.org/id/metropolitan-district-council/wolverhampton","SOCIAL FRAMES","80.00","Communications & Marketing - General","7221","Publications","30/06/2017"
"Wolverhampton City Council","http://opendatacommunities.org/id/metropolitan-district-council/wolverhampton","INTERCITY HOTEL KASSEL","25.39","Curatorial - Cultural Learning","7011","Subsistence","30/06/2017"
"Wolverhampton City Council","http://opendatacommunities.org/id/metropolitan-district-council/wolverhampton","WOLVERHAMPTON CC","2.50","Headstart Phase 3","7523","Parking Fees","30/06/2017"
"Wolverhampton City Council","http://opendatacommunities.org/id/metropolitan-district-council/wolverhampton","ASDA STORES 4452","55.48","EIP Locality 1","5411","Financial Assistance In Exceptional Circ","30/06/2017"
"Wolverhampton City Council","http://opendatacommunities.org/id/metropolitan-district-council/wolverhampton","MIDLAND DOMESTIC","238.00","EIP Locality 1","5722","Financial Assistance In Exceptional Circ","30/06/2017"
"Wolverhampton City Council","http://opendatacommunities.org/id/metropolitan-district-council/wolverhampton","Amazon UK Marketplace","4.25","EIP Locality 1","5942","Equipment - Purchase","30/06/2017"
"Wolverhampton City Council","http://opendatacommunities.org/id/metropolitan-district-council/wolverhampton","CREST MEDICAL LTD","44.00","Towers Outdoor Education Centre","8099","Equipment - Purchase","30/06/2017"
"Wolverhampton City Council","http://opendatacommunities.org/id/metropolitan-district-council/wolverhampton","NORTHERN POTTERY LTD","73.12","Towers Outdoor Education Centre","5999","Equipment - Purchase","30/06/2017"
"Wolverhampton City Council","http://opendatacommunities.org/id/metropolitan-district-council/wolverhampton","AMAZON.CO.UK","149.00","Technical Support","5999","Equipment - Purchase","30/06/2017"
"Wolverhampton City Council","http://opendatacommunities.org/id/metropolitan-district-council/wolverhampton","AMAZON.CO.UK","149.00","Technical Support","5999","Equipment - Purchase","30/06/2017"
"Wolverhampton City Council","http://opendatacommunities.org/id/metropolitan-district-council/wolverhampton","Amazon UK Marketplace","11.99","Technical Support","5942","Books","30/06/2017"
"Wolverhampton City Council","http://opendatacommunities.org/id/metropolitan-district-council/wolverhampton","Amazon UK Marketplace","11.99","Technical Support","5942","Books","30/06/2017"
"Wolverhampton City Council","http://opendatacommunities.org/id/metropolitan-district-council/wolverhampton","Amazon UK Marketplace","13.18","Technical Support","5942","Books","30/06/2017"
"Wolverhampton City Council","http://opendatacommunities.org/id/metropolitan-district-council/wolverhampton","CARVER/WOLVERHAMPTON/L","96.53","Ground Maintenance East","5211","Equipment - Purchase","29/06/2017"
"Wolverhampton City Council","http://opendatacommunities.org/id/metropolitan-district-council/wolverhampton","WWW.CITIZENCARD.COM","15.00","IMPACT","9399","Services - Fees and Charges","29/06/2017"
"Wolverhampton City Council","http://opendatacommunities.org/id/metropolitan-district-council/wolverhampton","Amazon UK Marketplace","16.63","Bert Williams Leisure Centre","5942","Books","29/06/2017"
"Wolverhampton City Council","http://opendatacommunities.org/id/metropolitan-district-council/wolverhampton","Amazon UK Marketplace","26.50","EIP Locality 8","5942","Equipment - Purchase","29/06/2017"
"Wolverhampton City Council","http://opendatacommunities.org/id/metropolitan-district-council/wolverhampton","Amazon UK Marketplace","5.42","EIP Locality 8","5942","Equipment - Purchase","29/06/2017"
"Wolverhampton City Council","http://opendatacommunities.org/id/metropolitan-district-council/wolverhampton","Amazon UK Marketplace","5.00","EIP Locality 8","5942","Equipment - Purchase","29/06/2017"
"Wolverhampton City Council","http://opendatacommunities.org/id/metropolitan-district-council/wolverhampton","Amazon UK Marketplace","4.43","EIP Locality 8","5942","Equipment - Purchase","29/06/2017"
"Wolverhampton City Council","http://opendatacommunities.org/id/metropolitan-district-council/wolverhampton","Amazon UK Marketplace","7.59","EIP Locality 8","5942","Equipment - Purchase","29/06/2017"
"Wolverhampton City Council","http://opendatacommunities.org/id/metropolitan-district-council/wolverhampton","ASDA HOME SHOPPING","39.61","EIP Locality 4","5411","Provisions (Not for resale)","29/06/2017"
"Wolverhampton City Council","http://opendatacommunities.org/id/metropolitan-district-council/wolverhampton","CURRYS ONLINE","169.99","LAC Transitions Team","5732","Client Allowances","29/06/2017"
"Wolverhampton City Council","http://opendatacommunities.org/id/metropolitan-district-council/wolverhampton","PRODUCT NOW LTD","416.67","LAC Transitions Team","5712","Client Allowances","29/06/2017"
"Wolverhampton City Council","http://opendatacommunities.org/id/metropolitan-district-council/wolverhampton","PRODUCT NOW LTD","408.33","LAC Transitions Team","5712","Client Allowances","29/06/2017"
"Wolverhampton City Council","http://opendatacommunities.org/id/metropolitan-district-council/wolverhampton","Virgin Trains","61.60","Adoption and Residence Team & Allowances","4112","Public Transport","29/06/2017"
"Wolverhampton City Council","http://opendatacommunities.org/id/metropolitan-district-council/wolverhampton","ITUNES.COM/BILL","3.33","Strategic ICTS (ICT Serv Budget)","5735","Computing - Purchase of Software","29/06/2017"
"Wolverhampton City Council","http://opendatacommunities.org/id/metropolitan-district-council/wolverhampton","ITUNES.COM/BILL",".79","Strategic ICTS (ICT Serv Budget)","5735","Computing - Purchase of Software","29/06/2017"
"Wolverhampton City Council","http://opendatacommunities.org/id/metropolitan-district-council/wolverhampton","Virgin Trains","195.50","LAC Team","4112","Public Transport","29/06/2017"
"Wolverhampton City Council","http://opendatacommunities.org/id/metropolitan-district-council/wolverhampton","ARGOS RETAIL GROUP","37.37","MASH","5310","Equipment - Purchase","29/06/2017"
"Wolverhampton City Council","http://opendatacommunities.org/id/metropolitan-district-council/wolverhampton","TESCO STORES 5397",".67","EIP Locality 1","5411","Provisions (Not for resale)","29/06/2017"
"Wolverhampton City Council","http://opendatacommunities.org/id/metropolitan-district-council/wolverhampton","WM MORRISON 024","200.00","CIN/CP Social Work Unit - Area 2","5411","Section 17","29/06/2017"
"Wolverhampton City Council","http://opendatacommunities.org/id/metropolitan-district-council/wolverhampton","CT WOLVERHAMPTON","167.50","EIP Locality 1","8398","Financial Assistance In Exceptional Circ","29/06/2017"
"Wolverhampton City Council","http://opendatacommunities.org/id/metropolitan-district-council/wolverhampton","Amazon UK Marketplace","63.85","EIP Locality 1","5942","Equipment - Purchase","29/06/2017"
"Wolverhampton City Council","http://opendatacommunities.org/id/metropolitan-district-council/wolverhampton","TESCO STORES 5194","-2.00","Towers Outdoor Education Centre","5411","Provisions (Not for resale)","29/06/2017"
"Wolverhampton City Council","http://opendatacommunities.org/id/metropolitan-district-council/wolverhampton","ASDA SUPERSTORE","20.00","Neighbourhood Management Central","5411","Provisions (Not for resale)","29/06/2017"
"Wolverhampton City Council","http://opendatacommunities.org/id/metropolitan-district-council/wolverhampton","CURRYS ONLINE","199.99","LAC Team","5732","Financial Assistance In Exceptional Circ","29/06/2017"
"Wolverhampton City Council","http://opendatacommunities.org/id/metropolitan-district-council/wolverhampton","PAYPAL  OPEN24UK","143.00","Environmental Health - Pub Prot - Gen","5732","Equipment - Purchase","29/06/2017"
"Wolverhampton City Council","http://opendatacommunities.org/id/metropolitan-district-council/wolverhampton","Trainline","61.51","CIN/CP Social Work Unit - Area 4","4112","Public Transport","29/06/2017"
"Wolverhampton City Council","http://opendatacommunities.org/id/metropolitan-district-council/wolverhampton","Wolverhampton Fair Tra","143.10","Civic Centre Catering","5411","Provisions (Not for resale)","29/06/2017"
"Wolverhampton City Council","http://opendatacommunities.org/id/metropolitan-district-council/wolverhampton","POST OFFICE COUNTER","6.45","CIN/CP Social Work Unit - Area 7","9402","Comms - Postage","29/06/2017"
"Wolverhampton City Council","http://opendatacommunities.org/id/metropolitan-district-council/wolverhampton","COMPANIES HOUSE","13.00","Legal Services","9399","Services - Fees and Charges","29/06/2017"
"Wolverhampton City Council","http://opendatacommunities.org/id/metropolitan-district-council/wolverhampton","ASDA GEORGE COM LEEDS","75.50","CIN/CP Social Work Unit - Area 5","5411","Provisions (Not for resale)","29/06/2017"
"Wolverhampton City Council","http://opendatacommunities.org/id/metropolitan-district-council/wolverhampton","AUTOBASE (GB) LIMITED","22.87","Fleet Management","7538","Equipment - Purchase","29/06/2017"
"Wolverhampton City Council","http://opendatacommunities.org/id/metropolitan-district-council/wolverhampton","Trainline","195.33","CIN/CP Social Work Unit - Area 8","4112","Public Transport","29/06/2017"
"Wolverhampton City Council","http://opendatacommunities.org/id/metropolitan-district-council/wolverhampton","B&M RETAIL LTD","16.66","LAC Transitions Team","5310","Client Allowances","29/06/2017"
"Wolverhampton City Council","http://opendatacommunities.org/id/metropolitan-district-council/wolverhampton","KENABLE LTD","69.24","Technical Material","5732","Equipment - Purchase","29/06/2017"
"Wolverhampton City Council","http://opendatacommunities.org/id/metropolitan-district-council/wolverhampton","Akzonobel","368.11","Maintenance of Exhibits","5198","Materials","29/06/2017"
"Wolverhampton City Council","http://opendatacommunities.org/id/metropolitan-district-council/wolverhampton","TFM FARM & COUNTRY SUP","114.50","Northicote Farm","5399","Equipment - Purchase","29/06/2017"
"Wolverhampton City Council","http://opendatacommunities.org/id/metropolitan-district-council/wolverhampton","Amazon UK Marketplace","35.22","Global Budgets","5942","Computing - Purchase of Hardware","28/06/2017"
"Wolverhampton City Council","http://opendatacommunities.org/id/metropolitan-district-council/wolverhampton","CLAREGATE S.STN FS408","5.17","Specialist Support Service - North","5541","Petrol","28/06/2017"
"Wolverhampton City Council","http://opendatacommunities.org/id/metropolitan-district-council/wolverhampton","CO-OPERATIVE TRAVE","2,260.55","Leonardo Da Vinci Project","6051","Subsistence","28/06/2017"
"Wolverhampton City Council","http://opendatacommunities.org/id/metropolitan-district-council/wolverhampton","WWW.WMCA.CO.UK","121.50","CIN/CP Social Work Unit - Area 5","9399","Public Transport","28/06/2017"
"Wolverhampton City Council","http://opendatacommunities.org/id/metropolitan-district-council/wolverhampton","WWW.MOSAICTRADINGCOMPA","100.00","Brick Wonders/Lego","5231","Marketing \ Non-staff advertising","28/06/2017"
"Wolverhampton City Council","http://opendatacommunities.org/id/metropolitan-district-council/wolverhampton","MAJESTIC WINE WARE","823.30","Civic Centre Catering","5921","Equipment - Purchase","28/06/2017"
"Wolverhampton City Council","http://opendatacommunities.org/id/metropolitan-district-council/wolverhampton","G & M HALE (SUNDRIES)","25.90","Talk English","5992","Materials","28/06/2017"
"Wolverhampton City Council","http://opendatacommunities.org/id/metropolitan-district-council/wolverhampton","Virgin Trains","38.00","Research & Development","4112","Public Transport","28/06/2017"
"Wolverhampton City Council","http://opendatacommunities.org/id/metropolitan-district-council/wolverhampton","Amazon UK Marketplace","18.25","Communications & Marketing - General","5942","Stationery","28/06/2017"
"Wolverhampton City Council","http://opendatacommunities.org/id/metropolitan-district-council/wolverhampton","WWW.GADGETS-GALORE.CO.","11.81","Headstart Phase 3","4812","Stationery","28/06/2017"
"Wolverhampton City Council","http://opendatacommunities.org/id/metropolitan-district-council/wolverhampton","BRITISHFOODSHOP","80.22","Headstart Phase 3","5499","Catering","28/06/2017"
"Wolverhampton City Council","http://opendatacommunities.org/id/metropolitan-district-council/wolverhampton","Amazon Svcs Europe,SAR","6.97","Headstart Phase 3","5942","Stationery","28/06/2017"
"Wolverhampton City Council","http://opendatacommunities.org/id/metropolitan-district-council/wolverhampton","SPORTSDIRECT 231","62.48","Headstart - Young People Engagement","5941","Clothing / Uniforms","28/06/2017"
"Wolverhampton City Council","http://opendatacommunities.org/id/metropolitan-district-council/wolverhampton","SPORTSDIRECT 231","353.22","Headstart - Young People Engagement","5941","Clothing / Uniforms","28/06/2017"
"Wolverhampton City Council","http://opendatacommunities.org/id/metropolitan-district-council/wolverhampton","000002200500000","50.00","Headstart - Young People Engagement","6011","Financial Assistance In Exceptional Circ","28/06/2017"
"Wolverhampton City Council","http://opendatacommunities.org/id/metropolitan-district-council/wolverhampton","POST OFFICE COUNTER","114.00","LAC Education Team (LACE)","9402","Comms - Postage","28/06/2017"
"Wolverhampton City Council","http://opendatacommunities.org/id/metropolitan-district-council/wolverhampton","B&M RETAIL","84.91","LAC Transitions Team","5310","Client Allowances","28/06/2017"
"Wolverhampton City Council","http://opendatacommunities.org/id/metropolitan-district-council/wolverhampton","CT WOLVERHAMPTON","35.00","EIP Locality 6","8398","Services - Supplies & Services to users","28/06/2017"
"Wolverhampton City Council","http://opendatacommunities.org/id/metropolitan-district-council/wolverhampton","Amazon UK Marketplace","10.98","Central Baths","5942","Equipment - Purchase","28/06/2017"
"Wolverhampton City Council","http://opendatacommunities.org/id/metropolitan-district-council/wolverhampton","WOLVERHAMPTON CC","8.33","Headstart Phase 3","7523","Parking Fees","28/06/2017"
"Wolverhampton City Council","http://opendatacommunities.org/id/metropolitan-district-council/wolverhampton","PREMIER INN","71.24","Headstart Phase 3","3811","Accommodation Costs","28/06/2017"
"Wolverhampton City Council","http://opendatacommunities.org/id/metropolitan-district-council/wolverhampton","CURRYS S/S","7.49","Ernest Bold Court","5732","Equipment - Purchase","28/06/2017"
"Wolverhampton City Council","http://opendatacommunities.org/id/metropolitan-district-council/wolverhampton","B&M RETAIL LTD","8.66","EIP Locality 1","5310","Equipment - Purchase","28/06/2017"
"Wolverhampton City Council","http://opendatacommunities.org/id/metropolitan-district-council/wolverhampton","HOME BARGAINS","5.30","EIP Locality 1","5251","Equipment - Purchase","28/06/2017"
"Wolverhampton City Council","http://opendatacommunities.org/id/metropolitan-district-council/wolverhampton","ARGOS LTD","21.24","CIN/CP Social Work Unit - Area 2","5310","Section 17","28/06/2017"
"Wolverhampton City Council","http://opendatacommunities.org/id/metropolitan-district-council/wolverhampton","Trainline","58.85","CIN/CP Social Work Unit - Area 2","4112","Section 17","28/06/2017"
"Wolverhampton City Council","http://opendatacommunities.org/id/metropolitan-district-council/wolverhampton","PREMIER INN","454.17","Homeless Families","3811","Accommodation Costs","28/06/2017"
"Wolverhampton City Council","http://opendatacommunities.org/id/metropolitan-district-council/wolverhampton","EXPEDIA 7275977040174","65.00","MASH","4722","No Recourse to Public Funds","28/06/2017"
"Wolverhampton City Council","http://opendatacommunities.org/id/metropolitan-district-council/wolverhampton","TESCO STORES 5194","220.95","Towers Outdoor Education Centre","5411","Provisions (Not for resale)","28/06/2017"
"Wolverhampton City Council","http://opendatacommunities.org/id/metropolitan-district-council/wolverhampton","WWW.ICO.GOV.UK","35.00","Members Expenses","9399","Subscriptions","28/06/2017"
"Wolverhampton City Council","http://opendatacommunities.org/id/metropolitan-district-council/wolverhampton","WWW.ICO.GOV.UK","35.00","Members Expenses","9399","Subscriptions","28/06/2017"
"Wolverhampton City Council","http://opendatacommunities.org/id/metropolitan-district-council/wolverhampton","WWW.ICO.GOV.UK","35.00","Members Expenses","9399","Subscriptions","28/06/2017"
"Wolverhampton City Council","http://opendatacommunities.org/id/metropolitan-district-council/wolverhampton","TFM FARM & COUNTRY SUP","82.29","Northicote Farm","5399","Equipment - Purchase","28/06/2017"
"Wolverhampton City Council","http://opendatacommunities.org/id/metropolitan-district-council/wolverhampton","PARTRIDGE & PRINT","378.00","Fostering Team & Allowances","8299","Training Expenses","28/06/2017"
"Wolverhampton City Council","http://opendatacommunities.org/id/metropolitan-district-council/wolverhampton","CT WOLVERHAMPTON","92.00","CIN/CP Social Work Unit - Area 5","8398","Services - Supplies & Services to users","28/06/2017"
"Wolverhampton City Council","http://opendatacommunities.org/id/metropolitan-district-council/wolverhampton","CT WOLVERHAMPTON","110.00","CIN/CP Social Work Unit - Area 5","8398","Services - Supplies & Services to users","28/06/2017"
"Wolverhampton City Council","http://opendatacommunities.org/id/metropolitan-district-council/wolverhampton","CT WOLVERHAMPTON","200.00","CIN/CP Social Work Unit - Area 5","8398","Services - Supplies & Services to users","28/06/2017"
"Wolverhampton City Council","http://opendatacommunities.org/id/metropolitan-district-council/wolverhampton","AUTOBASE (GB) LIMITED","261.80","Fleet Management","7538","Equipment - Purchase","28/06/2017"
"Wolverhampton City Council","http://opendatacommunities.org/id/metropolitan-district-council/wolverhampton","AUTOBASE (GB) LIMITED","110.22","Fleet Management","7538","Equipment - Purchase","28/06/2017"
"Wolverhampton City Council","http://opendatacommunities.org/id/metropolitan-district-council/wolverhampton","VW VAN CENTRE","37.01","Fleet Management","5511","Equipment - Purchase","28/06/2017"
"Wolverhampton City Council","http://opendatacommunities.org/id/metropolitan-district-council/wolverhampton","PREMIER INN","70.82","Adoption and Residence Team & Allowances","3811","Accommodation Costs","28/06/2017"
"Wolverhampton City Council","http://opendatacommunities.org/id/metropolitan-district-council/wolverhampton","WWW.BRISTOL-CITY.GOV.U","30.00","CIN/CP Social Work Unit - Area 6","5947","Section 17","28/06/2017"
"Wolverhampton City Council","http://opendatacommunities.org/id/metropolitan-district-council/wolverhampton","ARGOS RETAIL GROUP","83.32","Towers Outdoor Education Centre","5310","Equipment - Purchase","28/06/2017"
"Wolverhampton City Council","http://opendatacommunities.org/id/metropolitan-district-council/wolverhampton","Amazon EU","110.25","Technical Support","5969","Equipment - Purchase","28/06/2017"
"Wolverhampton City Council","http://opendatacommunities.org/id/metropolitan-district-council/wolverhampton","Amazon EU","34.00","Technical Support","5969","Equipment - Purchase","28/06/2017"
"Wolverhampton City Council","http://opendatacommunities.org/id/metropolitan-district-council/wolverhampton","Amazon UK Marketplace","62.59","Learning Technologies","5942","Books","28/06/2017"
"Wolverhampton City Council","http://opendatacommunities.org/id/metropolitan-district-council/wolverhampton","WP-WARWICKSHIRE CO","10.65","CIN/CP Social Work Unit - Area 6","9399","Section 17","28/06/2017"
"Wolverhampton City Council","http://opendatacommunities.org/id/metropolitan-district-council/wolverhampton","SCREWFIX DIRECT","176.07","Technician","5211","Materials","28/06/2017"
"Wolverhampton City Council","http://opendatacommunities.org/id/metropolitan-district-council/wolverhampton","HIGHFIELD HOUSE HO","385.00","CIN/CP Social Work Unit - Area 3","7011","No Recourse to Public Funds","28/06/2017"
"Wolverhampton City Council","http://opendatacommunities.org/id/metropolitan-district-council/wolverhampton","WEX PHOTOGRAPHIC","457.50","Communications & Marketing - General","5946","Equipment - Purchase","27/06/2017"
"Wolverhampton City Council","http://opendatacommunities.org/id/metropolitan-district-council/wolverhampton","INSITE MARKETING SOLUT","1,200.00","Communications & Marketing - General","2741","Publications","27/06/2017"
"Wolverhampton City Council","http://opendatacommunities.org/id/metropolitan-district-council/wolverhampton","BRTMKT DBA FastSpring","158.67","Communications & Marketing - General","5818","Subscriptions","27/06/2017"
"Wolverhampton City Council","http://opendatacommunities.org/id/metropolitan-district-council/wolverhampton","ROYAL BK OF SCOTLAND","100.00","Headstart Phase 3","6011","Financial Assistance In Exceptional Circ","27/06/2017"
"Wolverhampton City Council","http://opendatacommunities.org/id/metropolitan-district-council/wolverhampton","Amazon EU","148.00","Education Business Partnership","5969","Equipment - Purchase","27/06/2017"
"Wolverhampton City Council","http://opendatacommunities.org/id/metropolitan-district-council/wolverhampton","ASDA HOME SHOPPING","-.19","Ernest Bold Court","5411","Provisions (Not for resale)","27/06/2017"
"Wolverhampton City Council","http://opendatacommunities.org/id/metropolitan-district-council/wolverhampton","ASDA HOME SHOPPING","148.72","Ernest Bold Court","5411","Provisions (Not for resale)","27/06/2017"
"Wolverhampton City Council","http://opendatacommunities.org/id/metropolitan-district-council/wolverhampton","WWW.MOBILEFUN.CO.U","405.72","City Direct","4812","Comms - Mobile Telephones","27/06/2017"
"Wolverhampton City Council","http://opendatacommunities.org/id/metropolitan-district-council/wolverhampton","NCVO","220.00","LAC Education Team (LACE)","5399","Equipment - Purchase","27/06/2017"
"Wolverhampton City Council","http://opendatacommunities.org/id/metropolitan-district-council/wolverhampton","WWW.REED.CO.UK","289.00","Strategic ICTS (ICT Serv Budget)","7361","Staff Advertising Costs","27/06/2017"
"Wolverhampton City Council","http://opendatacommunities.org/id/metropolitan-district-council/wolverhampton","AMAZON UK RETAIL AMAZO","28.18","LAC Team","5999","Computing - Purchase of Hardware","27/06/2017"
"Wolverhampton City Council","http://opendatacommunities.org/id/metropolitan-district-council/wolverhampton","E01510300000000","80.00","Emergency Duty Team","6011","Financial Assistance In Exceptional Circ","27/06/2017"
"Wolverhampton City Council","http://opendatacommunities.org/id/metropolitan-district-council/wolverhampton","POST OFFICE COUNTER","1.75","Emergency Duty Team","9402","Comms - Postage","27/06/2017"
"Wolverhampton City Council","http://opendatacommunities.org/id/metropolitan-district-council/wolverhampton","WWW.CAMBRIDGEASSES","103.73","Work Related Studies","8220","Exam Expenses (Non-Employee)","27/06/2017"
"Wolverhampton City Council","http://opendatacommunities.org/id/metropolitan-district-council/wolverhampton","W M MORRISONS.COM","97.02","Discretionary Fund","5411","Materials","27/06/2017"
"Wolverhampton City Council","http://opendatacommunities.org/id/metropolitan-district-council/wolverhampton","FACEBK S8GA2CJC22","400.00","Service Wide","7311","Marketing \ Non-staff advertising","27/06/2017"
"Wolverhampton City Council","http://opendatacommunities.org/id/metropolitan-district-council/wolverhampton","LIDDELL ELECTRICAL DIS","19.95","Traffic Signals","5065","Equipment - R & M","27/06/2017"
"Wolverhampton City Council","http://opendatacommunities.org/id/metropolitan-district-council/wolverhampton","WELSH CANOE ASSOC","33.33","Towers Outdoor Education Centre","5941","Equipment - Purchase","27/06/2017"
"Wolverhampton City Council","http://opendatacommunities.org/id/metropolitan-district-council/wolverhampton","123-REG.CO.UK",".99","Technical Support","4816","Computing - Purchase of Software","27/06/2017"
"Wolverhampton City Council","http://opendatacommunities.org/id/metropolitan-district-council/wolverhampton","PAYPAL  PRINTEDMUGS","126.07","Technical Support","2741","Publications","27/06/2017"
"Wolverhampton City Council","http://opendatacommunities.org/id/metropolitan-district-council/wolverhampton","WOLVERHAMPTON TROPHY C","180.00","Learning Technologies","5999","Equipment - Purchase","27/06/2017"
"Wolverhampton City Council","http://opendatacommunities.org/id/metropolitan-district-council/wolverhampton","POST OFFICE COUNTER",".98","Head of Service - CINCP","9402","Comms - Postage","27/06/2017"
"Wolverhampton City Council","http://opendatacommunities.org/id/metropolitan-district-council/wolverhampton","ASDA SUPERSTORE","26.52","Play General","5411","Provisions (Not for resale)","27/06/2017"
"Wolverhampton City Council","http://opendatacommunities.org/id/metropolitan-district-council/wolverhampton","ARGOS LTD","24.97","Play General","5310","Equipment - Purchase","27/06/2017"
"Wolverhampton City Council","http://opendatacommunities.org/id/metropolitan-district-council/wolverhampton","EB  NACHURAL SUMMER BU","794.33","Strategic Director Place","7399","Events","27/06/2017"
"Wolverhampton City Council","http://opendatacommunities.org/id/metropolitan-district-council/wolverhampton","Trainline","35.45","Legal Services","4112","Public Transport","27/06/2017"
"Wolverhampton City Council","http://opendatacommunities.org/id/metropolitan-district-council/wolverhampton","G & M HALE (SUNDRIES)","77.10","Talk English","5992","Materials","27/06/2017"
"Wolverhampton City Council","http://opendatacommunities.org/id/metropolitan-district-council/wolverhampton","G & M HALE LTD","43.00","Discretionary Fund","5992","Materials","27/06/2017"
"Wolverhampton City Council","http://opendatacommunities.org/id/metropolitan-district-council/wolverhampton","Cross Country Trains","25.50","School Improvement","4112","Public Transport","27/06/2017"
"Wolverhampton City Council","http://opendatacommunities.org/id/metropolitan-district-council/wolverhampton","Trainline","190.13","CIN/CP Social Work Unit - Area 8","4112","Public Transport","27/06/2017"
"Wolverhampton City Council","http://opendatacommunities.org/id/metropolitan-district-council/wolverhampton","THE POST OFFICE","58.75","Adoption and Residence Team & Allowances","9402","Services - Fees and Charges","27/06/2017"
"Wolverhampton City Council","http://opendatacommunities.org/id/metropolitan-district-council/wolverhampton","Virgin Trains","108.40","Members Expenses","4112","Public Transport","27/06/2017"
"Wolverhampton City Council","http://opendatacommunities.org/id/metropolitan-district-council/wolverhampton","WILKO RETAIL LIMIT","12.50","Children & Family Contact Services","5722","Equipment - Purchase","26/06/2017"
"Wolverhampton City Council","http://opendatacommunities.org/id/metropolitan-district-council/wolverhampton","POUNDWORLD RETAIL","2.50","Children & Family Contact Services","5310","Equipment - Purchase","26/06/2017"
"Wolverhampton City Council","http://opendatacommunities.org/id/metropolitan-district-council/wolverhampton","POUNDSTRETCHER 147","8.33","Children & Family Contact Services","5714","Equipment - Purchase","26/06/2017"
"Wolverhampton City Council","http://opendatacommunities.org/id/metropolitan-district-council/wolverhampton","ALDI","15.80","Children & Family Contact Services","5411","Equipment - Purchase","26/06/2017"
"Wolverhampton City Council","http://opendatacommunities.org/id/metropolitan-district-council/wolverhampton","WWW.ARGOS.CO.UK","253.93","Fostering Team & Allowances","5310","Equipment - Purchase","26/06/2017"
"Wolverhampton City Council","http://opendatacommunities.org/id/metropolitan-district-council/wolverhampton","ARGOS RETAIL GROUP","30.99","Fostering Team & Allowances","5310","Equipment - Purchase","26/06/2017"
"Wolverhampton City Council","http://opendatacommunities.org/id/metropolitan-district-council/wolverhampton","Trainline","83.33","CIN/CP Social Work Unit - Area 4","4112","Public Transport","26/06/2017"
"Wolverhampton City Council","http://opendatacommunities.org/id/metropolitan-district-council/wolverhampton","ABSOLUTE MUSIC","302.00","Music Support Team","5733","Equipment - R & M","26/06/2017"
"Wolverhampton City Council","http://opendatacommunities.org/id/metropolitan-district-council/wolverhampton","PREMIER INN","151.65","Adoption and Residence Team & Allowances","3811","Accommodation Costs","26/06/2017"
"Wolverhampton City Council","http://opendatacommunities.org/id/metropolitan-district-council/wolverhampton","ASDA HOME SHOPPING","31.87","EIP Locality 5","5411","Grant Payments","26/06/2017"
"Wolverhampton City Council","http://opendatacommunities.org/id/metropolitan-district-council/wolverhampton","BARCLAYS BANK PLC","250.00","CIN/CP Social Work Unit - Area 6","6011","Section 17","26/06/2017"
"Wolverhampton City Council","http://opendatacommunities.org/id/metropolitan-district-council/wolverhampton","CARECO.CO.UK","687.43","Delivery & OCE Development","5571","Equipment - Health and Safety","26/06/2017"
"Wolverhampton City Council","http://opendatacommunities.org/id/metropolitan-district-council/wolverhampton","Amazon UK Marketplace","59.95","Learning Technologies","5942","Books","26/06/2017"
"Wolverhampton City Council","http://opendatacommunities.org/id/metropolitan-district-council/wolverhampton","123-REG.CO.UK",".99","Technical Support","4816","Computing - Purchase of Software","26/06/2017"
"Wolverhampton City Council","http://opendatacommunities.org/id/metropolitan-district-council/wolverhampton","AMAZON.CO.UK","19.50","Learning Technologies","5999","Equipment - Purchase","26/06/2017"
"Wolverhampton City Council","http://opendatacommunities.org/id/metropolitan-district-council/wolverhampton","Amazon UK Marketplace","249.00","Learning Technologies","5942","Books","26/06/2017"
"Wolverhampton City Council","http://opendatacommunities.org/id/metropolitan-district-council/wolverhampton","WEST MID TRAVEL","869.10","Travel Scratch Cards & Rail Warrants","4131","Public Transport","26/06/2017"
"Wolverhampton City Council","http://opendatacommunities.org/id/metropolitan-district-council/wolverhampton","Amazon Prime","79.00","Civic Halls Non Direct Management A/C","5968","Subscriptions","26/06/2017"
"Wolverhampton City Council","http://opendatacommunities.org/id/metropolitan-district-council/wolverhampton","GTG TRAINING LTD","575.83","Civic Halls Non Direct Management A/C","5521","Training Expenses","26/06/2017"
"Wolverhampton City Council","http://opendatacommunities.org/id/metropolitan-district-council/wolverhampton","BCC REGISTER OFFIC","25.00","CIN/CP Social Work Unit - Area 4","9399","Services - Fees and Charges","26/06/2017"
"Wolverhampton City Council","http://opendatacommunities.org/id/metropolitan-district-council/wolverhampton","WWW.WMCA.CO.UK","132.00","CIN/CP Social Work Unit - Area 4","9399","Services - Fees and Charges","26/06/2017"
"Wolverhampton City Council","http://opendatacommunities.org/id/metropolitan-district-council/wolverhampton","ASDA STORE 4753","13.30","Ernest Bold Court","5411","Provisions (Not for resale)","26/06/2017"
"Wolverhampton City Council","http://opendatacommunities.org/id/metropolitan-district-council/wolverhampton","E01350800000000","40.00","Ernest Bold Court","6011","Financial Assistance In Exceptional Circ","26/06/2017"
"Wolverhampton City Council","http://opendatacommunities.org/id/metropolitan-district-council/wolverhampton","Trainline","51.46","Legal Services","4112","Public Transport","26/06/2017"
"Wolverhampton City Council","http://opendatacommunities.org/id/metropolitan-district-council/wolverhampton","Trainline","21.78","Curatorial - Cultural Learning","4112","Subsistence","26/06/2017"
"Wolverhampton City Council","http://opendatacommunities.org/id/metropolitan-district-council/wolverhampton","WWW.SHOP.DOCUMENTA.DE","43.48","Curatorial - Cultural Learning","7399","Subsistence","26/06/2017"
"Wolverhampton City Council","http://opendatacommunities.org/id/metropolitan-district-council/wolverhampton","Trainline","61.61","Curatorial - Cultural Learning","4112","Subsistence","26/06/2017"
"Wolverhampton City Council","http://opendatacommunities.org/id/metropolitan-district-council/wolverhampton","E00783400000000","30.00","EIP Locality 1","6011","Financial Assistance In Exceptional Circ","26/06/2017"
"Wolverhampton City Council","http://opendatacommunities.org/id/metropolitan-district-council/wolverhampton","TESCO STORES 2606","14.88","MASH","5411","Catering","26/06/2017"
"Wolverhampton City Council","http://opendatacommunities.org/id/metropolitan-district-council/wolverhampton","E01510300000000","100.00","MASH","6011","Financial Assistance In Exceptional Circ","26/06/2017"
"Wolverhampton City Council","http://opendatacommunities.org/id/metropolitan-district-council/wolverhampton","CERAMIC REVIEW","350.00","Arts Publicity","5970","Materials","26/06/2017"
"Wolverhampton City Council","http://opendatacommunities.org/id/metropolitan-district-council/wolverhampton","SAINSBURYS 2040","14.00","Duke Street Bungalows","5411","Provisions (Not for resale)","26/06/2017"
"Wolverhampton City Council","http://opendatacommunities.org/id/metropolitan-district-council/wolverhampton","Amazon UK Marketplace","9.99","SEN Special Education Admin","5942","Equipment - Purchase","26/06/2017"
"Wolverhampton City Council","http://opendatacommunities.org/id/metropolitan-district-council/wolverhampton","LAKELAND.LIMITED","58.34","Towers Outdoor Education Centre","5399","Equipment - Purchase","26/06/2017"
"Wolverhampton City Council","http://opendatacommunities.org/id/metropolitan-district-council/wolverhampton","KEY INDUSTRIAL EQUIPME","35.40","Towers Outdoor Education Centre","5072","Equipment - Purchase","26/06/2017"
"Wolverhampton City Council","http://opendatacommunities.org/id/metropolitan-district-council/wolverhampton","Amazon UK Marketplace","19.60","Towers Outdoor Education Centre","5942","Books","26/06/2017"
"Wolverhampton City Council","http://opendatacommunities.org/id/metropolitan-district-council/wolverhampton","ARGOS LTD","124.93","LAC Transitions Team","5310","Client Allowances","26/06/2017"
"Wolverhampton City Council","http://opendatacommunities.org/id/metropolitan-district-council/wolverhampton","CT WOLVERHAMPTON","-104.17","LAC Transitions Team","8398","Client Allowances","26/06/2017"
"Wolverhampton City Council","http://opendatacommunities.org/id/metropolitan-district-council/wolverhampton","PREMIER INN","149.15","Adoption and Residence Team & Allowances","3811","Services - Supplies & Services to users","26/06/2017"
"Wolverhampton City Council","http://opendatacommunities.org/id/metropolitan-district-council/wolverhampton","Virgin Trains","60.15","Adoption and Residence Team & Allowances","4112","Public Transport","26/06/2017"
"Wolverhampton City Council","http://opendatacommunities.org/id/metropolitan-district-council/wolverhampton","Amazon UK Marketplace","79.95","Strategic ICTS (ICT Serv Budget)","5942","Computing - Purchase of Hardware","26/06/2017"
"Wolverhampton City Council","http://opendatacommunities.org/id/metropolitan-district-council/wolverhampton","Virgin Trains","124.65","Corporate Procurement Unit","4112","Public Transport","26/06/2017"
"Wolverhampton City Council","http://opendatacommunities.org/id/metropolitan-district-council/wolverhampton","THE SWIMMING POOL","-24.99","Central Baths","5996","Equipment - Purchase","26/06/2017"
"Wolverhampton City Council","http://opendatacommunities.org/id/metropolitan-district-council/wolverhampton","SAINSBURYS","200.00","EIP Locality 7","6011","Grant Payments","26/06/2017"
"Wolverhampton City Council","http://opendatacommunities.org/id/metropolitan-district-council/wolverhampton","HM PASSPORT OFFICE","184.00","LAC Team","9399","Financial Assistance In Exceptional Circ","26/06/2017"
"Wolverhampton City Council","http://opendatacommunities.org/id/metropolitan-district-council/wolverhampton","HM PASSPORT OFFICE","184.00","LAC Team","9399","Financial Assistance In Exceptional Circ","26/06/2017"
"Wolverhampton City Council","http://opendatacommunities.org/id/metropolitan-district-council/wolverhampton","ASDA HOME SHOPPING","2.50","Upper Pendeford Farm Childrens Home","5411","Provisions (Not for resale)","26/06/2017"
"Wolverhampton City Council","http://opendatacommunities.org/id/metropolitan-district-council/wolverhampton","DB BAHN  A-NR KVH2UE","69.34","Art Gallery","4112","Public Transport","26/06/2017"
"Wolverhampton City Council","http://opendatacommunities.org/id/metropolitan-district-council/wolverhampton","ICC ONLINE ORDER","562.00","Communications & Marketing - General","7399","Equipment - Purchase","26/06/2017"
"Wolverhampton City Council","http://opendatacommunities.org/id/metropolitan-district-council/wolverhampton","THORNSGROUP.CO.UK","750.25","Communications & Marketing - General","5712","Equipment - Purchase","26/06/2017"
"Wolverhampton City Council","http://opendatacommunities.org/id/metropolitan-district-council/wolverhampton","CUE MEDIA LTD","908.50","Communications & Marketing - General","7399","Equipment - Purchase","26/06/2017"
"Wolverhampton City Council","http://opendatacommunities.org/id/metropolitan-district-council/wolverhampton","SHOWLITE LTD","199.94","Communications & Marketing - General","5399","Equipment - Purchase","26/06/2017"
"Wolverhampton City Council","http://opendatacommunities.org/id/metropolitan-district-council/wolverhampton","Amazon UK Marketplace","14.96","Education Business Partnership","5942","Equipment - Purchase","26/06/2017"
"Wolverhampton City Council","http://opendatacommunities.org/id/metropolitan-district-council/wolverhampton","GREGGS PLC","27.50","Mayoral Expenses","5812","Hospitality","26/06/2017"
"Wolverhampton City Council","http://opendatacommunities.org/id/metropolitan-district-council/wolverhampton","MANDER CENTRE CAR PARK","6.67","Mayoral Expenses","8999","Parking Fees","26/06/2017"
"Wolverhampton City Council","http://opendatacommunities.org/id/metropolitan-district-council/wolverhampton","BLOOMS MENSWEAR","66.63","Mayoral Expenses","5611","Clothing / Uniforms","26/06/2017"
"Wolverhampton City Council","http://opendatacommunities.org/id/metropolitan-district-council/wolverhampton","SAINSBURYS (2340)","100.00","Mayoral Expenses","5411","Hospitality","26/06/2017"
"Wolverhampton City Council","http://opendatacommunities.org/id/metropolitan-district-council/wolverhampton","UXPIN.COM","80.35","City Direct","7372","Computing - Purchase of Software","26/06/2017"
"Wolverhampton City Council","http://opendatacommunities.org/id/metropolitan-district-council/wolverhampton","WEST COAST TRAINS","17.90","City Direct","4112","Public Transport","26/06/2017"
"Wolverhampton City Council","http://opendatacommunities.org/id/metropolitan-district-council/wolverhampton","Cross Country Trains","67.30","HR Advice","4112","Public Transport","23/06/2017"
"Wolverhampton City Council","http://opendatacommunities.org/id/metropolitan-district-council/wolverhampton","Cross Country Trains","128.80","HR Advice","4112","Public Transport","23/06/2017"
"Wolverhampton City Council","http://opendatacommunities.org/id/metropolitan-district-council/wolverhampton","NOTEMACHINE","100.00","Childrens with Disabilities Team","6011","Financial Assistance In Exceptional Circ","23/06/2017"
"Wolverhampton City Council","http://opendatacommunities.org/id/metropolitan-district-council/wolverhampton","NOTEMACHINE","250.00","Childrens with Disabilities Team","6011","No Recourse to Public Funds","23/06/2017"
"Wolverhampton City Council","http://opendatacommunities.org/id/metropolitan-district-council/wolverhampton","SAINSBURYS 2040","-170.83","LAC Transitions Team","5411","Client Allowances","23/06/2017"
"Wolverhampton City Council","http://opendatacommunities.org/id/metropolitan-district-council/wolverhampton","ARGOS LTD","182.50","LAC Transitions Team","5310","Client Allowances","23/06/2017"
"Wolverhampton City Council","http://opendatacommunities.org/id/metropolitan-district-council/wolverhampton","Trainline","81.09","Youth Offending Team","4112","Public Transport","23/06/2017"
"Wolverhampton City Council","http://opendatacommunities.org/id/metropolitan-district-council/wolverhampton","REGISTRARS OFFICE","20.00","Adoption and Residence Team & Allowances","8299","Services - Fees and Charges","23/06/2017"
"Wolverhampton City Council","http://opendatacommunities.org/id/metropolitan-district-council/wolverhampton","TRAVELODGE","58.54","Adoption and Residence Team & Allowances","3615","Services - Supplies & Services to users","23/06/2017"
"Wolverhampton City Council","http://opendatacommunities.org/id/metropolitan-district-council/wolverhampton","POST OFFICE COUNTER","8.55","Adoption and Residence Team & Allowances","9402","Comms - Postage","23/06/2017"
"Wolverhampton City Council","http://opendatacommunities.org/id/metropolitan-district-council/wolverhampton","Packt Publishing LTD","15.98","Strategic ICTS (ICT Serv Budget)","5815","Books","23/06/2017"
"Wolverhampton City Council","http://opendatacommunities.org/id/metropolitan-district-council/wolverhampton","CHILLINGTON SELF STORA","90.64","LAC Transitions Team","4214","Client Allowances","23/06/2017"
"Wolverhampton City Council","http://opendatacommunities.org/id/metropolitan-district-council/wolverhampton","WWW.ARGOS.CO.UK","373.43","Upper Pendeford Farm Childrens Home","5310","Equipment - Purchase","23/06/2017"
"Wolverhampton City Council","http://opendatacommunities.org/id/metropolitan-district-council/wolverhampton","ASDA HOME SHOPPING","-1.50","Upper Pendeford Farm Childrens Home","5411","Provisions (Not for resale)","23/06/2017"
"Wolverhampton City Council","http://opendatacommunities.org/id/metropolitan-district-council/wolverhampton","Amazon UK Marketplace","12.79","Legal Services","5942","Books","23/06/2017"
"Wolverhampton City Council","http://opendatacommunities.org/id/metropolitan-district-council/wolverhampton","Amazon UK Marketplace","9.80","Legal Services","5942","Books","23/06/2017"
"Wolverhampton City Council","http://opendatacommunities.org/id/metropolitan-district-council/wolverhampton","PREMIER INN","492.50","Adoption and Residence Team & Allowances","3811","Services - Supplies & Services to users","23/06/2017"
"Wolverhampton City Council","http://opendatacommunities.org/id/metropolitan-district-council/wolverhampton","Amazon EU","12.09","Fleet Management","5969","Computing - Consumables","23/06/2017"
"Wolverhampton City Council","http://opendatacommunities.org/id/metropolitan-district-council/wolverhampton","WWW.KEEPBRITAINTIDY.OR","29.17","Management & Administration","8398","Stationery","23/06/2017"
"Wolverhampton City Council","http://opendatacommunities.org/id/metropolitan-district-council/wolverhampton","NATWEST BANK","170.00","Members Expenses","6011","Financial Assistance In Exceptional Circ","23/06/2017"
"Wolverhampton City Council","http://opendatacommunities.org/id/metropolitan-district-council/wolverhampton","SCREWFIX WOLVERHAM","10.40","Caretakers Community Centre","5211","R&M - Departmental planned (external)","23/06/2017"
"Wolverhampton City Council","http://opendatacommunities.org/id/metropolitan-district-council/wolverhampton","EB  DOMESTIC ABUSE AWA","171.10","EIP Locality 1","7399","Training Expenses","23/06/2017"
"Wolverhampton City Council","http://opendatacommunities.org/id/metropolitan-district-council/wolverhampton","Amazon UK Marketplace","26.46","EIP Locality 1","5942","Stationery","23/06/2017"
"Wolverhampton City Council","http://opendatacommunities.org/id/metropolitan-district-council/wolverhampton","TERMINUS CONTRACT HIRE","-200.00","Technical Support","7512","Car Allowances","23/06/2017"
"Wolverhampton City Council","http://opendatacommunities.org/id/metropolitan-district-council/wolverhampton","PAYPAL  WISHTRAC","22.93","Learning Technologies","7372","Computing - Purchase of Software","23/06/2017"
"Wolverhampton City Council","http://opendatacommunities.org/id/metropolitan-district-council/wolverhampton","Trainline","372.81","Technical Support","4112","Public Transport","23/06/2017"
"Wolverhampton City Council","http://opendatacommunities.org/id/metropolitan-district-council/wolverhampton","Amazon Prime","7.99","Technical Support","5968","Subscriptions","23/06/2017"
"Wolverhampton City Council","http://opendatacommunities.org/id/metropolitan-district-council/wolverhampton","HOLLAND & BARRETT","6.22","Play General","5999","Equipment - Purchase","23/06/2017"
"Wolverhampton City Council","http://opendatacommunities.org/id/metropolitan-district-council/wolverhampton","Trainline","16.27","CIN/CP Social Work Unit - Area 4","4112","Public Transport","23/06/2017"
"Wolverhampton City Council","http://opendatacommunities.org/id/metropolitan-district-council/wolverhampton","OFFICIALRECORDCOUK","15.98","CIN/CP Social Work Unit - Area 7","7392","Services - Consultants","23/06/2017"
"Wolverhampton City Council","http://opendatacommunities.org/id/metropolitan-district-council/wolverhampton","ASDA HOME SHOPPING","321.37","Upper Pendeford Farm Childrens Home","5411","Provisions (Not for resale)","23/06/2017"
"Wolverhampton City Council","http://opendatacommunities.org/id/metropolitan-district-council/wolverhampton","AMAZON UK RETAIL AMAZO","61.74","Language Studies Delivery Area","5999","Equipment - Purchase","23/06/2017"
"Wolverhampton City Council","http://opendatacommunities.org/id/metropolitan-district-council/wolverhampton","POUNDLAND LTD 1463","3.33","Central Costs","5310","Equipment - Purchase","23/06/2017"
"Wolverhampton City Council","http://opendatacommunities.org/id/metropolitan-district-council/wolverhampton","PREMIER INN","111.23","Headstart Phase 3","3811","Accommodation Costs","23/06/2017"
"Wolverhampton City Council","http://opendatacommunities.org/id/metropolitan-district-council/wolverhampton","PREMIER INN","282.46","Headstart Phase 3","3811","Accommodation Costs","23/06/2017"
"Wolverhampton City Council","http://opendatacommunities.org/id/metropolitan-district-council/wolverhampton","OFFICIALRECORDCOUK","15.98","CIN/CP Social Work Unit - Area 7","7392","Services - Consultants","23/06/2017"
"Wolverhampton City Council","http://opendatacommunities.org/id/metropolitan-district-council/wolverhampton","REGISTRARS OFFICE","60.00","Legal Services","8299","Training Expenses","23/06/2017"
"Wolverhampton City Council","http://opendatacommunities.org/id/metropolitan-district-council/wolverhampton","Amazon UK Marketplace","10.73","Strategic ICTS (ICT Serv Budget)","5942","Equipment - Purchase","22/06/2017"
"Wolverhampton City Council","http://opendatacommunities.org/id/metropolitan-district-council/wolverhampton","ITUNES.COM/BILL","9.13","Global Budgets","5735","Computing - Purchase of Software","22/06/2017"
"Wolverhampton City Council","http://opendatacommunities.org/id/metropolitan-district-council/wolverhampton","ITUNES.COM/BILL","7.47","Global Budgets","5735","Computing - Purchase of Software","22/06/2017"
"Wolverhampton City Council","http://opendatacommunities.org/id/metropolitan-district-council/wolverhampton","Amazon UK Marketplace","35.24","Strategic ICTS (ICT Serv Budget)","5942","Equipment - Purchase","22/06/2017"
"Wolverhampton City Council","http://opendatacommunities.org/id/metropolitan-district-council/wolverhampton","Amazon UK Marketplace","11.42","Strategic ICTS (ICT Serv Budget)","5942","Equipment - Purchase","22/06/2017"
"Wolverhampton City Council","http://opendatacommunities.org/id/metropolitan-district-council/wolverhampton","PREMIER INN","91.99","Managing Director","3811","Accommodation Costs","22/06/2017"
"Wolverhampton City Council","http://opendatacommunities.org/id/metropolitan-district-council/wolverhampton","PAYPAL  WTONBIZFOR","3.00","Corporate Procurement Unit","8398","Events","22/06/2017"
"Wolverhampton City Council","http://opendatacommunities.org/id/metropolitan-district-council/wolverhampton","PAYPAL  WTONBIZFOR","3.00","Corporate Procurement Unit","8398","Events","22/06/2017"
"Wolverhampton City Council","http://opendatacommunities.org/id/metropolitan-district-council/wolverhampton","OFFICIALRECORDCOUK","15.98","CIN/CP Social Work Unit - Area 7","7392","Services - Consultants","22/06/2017"
"Wolverhampton City Council","http://opendatacommunities.org/id/metropolitan-district-council/wolverhampton","OFFICIALRECORDCOUK","15.98","CIN/CP Social Work Unit - Area 7","7392","Services - Consultants","22/06/2017"
"Wolverhampton City Council","http://opendatacommunities.org/id/metropolitan-district-council/wolverhampton","STAFFORDSHIRE COUNTY C","10.00","Workforce Development","9399","Training Expenses","22/06/2017"
"Wolverhampton City Council","http://opendatacommunities.org/id/metropolitan-district-council/wolverhampton","WWW.GOV.UK","10.00","Legal Services","8999","Services - Professional Fees","22/06/2017"
"Wolverhampton City Council","http://opendatacommunities.org/id/metropolitan-district-council/wolverhampton","AUTOBASE (GB) LIMITED","113.88","Fleet Management","7538","Equipment - Purchase","22/06/2017"
"Wolverhampton City Council","http://opendatacommunities.org/id/metropolitan-district-council/wolverhampton","POLLET POOL GROUP","591.95","Parks - Ranger Service","5996","Materials","22/06/2017"
"Wolverhampton City Council","http://opendatacommunities.org/id/metropolitan-district-council/wolverhampton","ARGOS LTD","22.49","LAC Transitions Team","5310","Client Allowances","22/06/2017"
"Wolverhampton City Council","http://opendatacommunities.org/id/metropolitan-district-council/wolverhampton","ARGOS LTD","325.02","LAC Transitions Team","5310","Client Allowances","22/06/2017"
"Wolverhampton City Council","http://opendatacommunities.org/id/metropolitan-district-council/wolverhampton","GRO HM PASSPORT OFFICE","9.25","LAC Transitions Team","9399","Services - Fees and Charges","22/06/2017"
"Wolverhampton City Council","http://opendatacommunities.org/id/metropolitan-district-council/wolverhampton","WICKES BUILDING","249.62","Wildlife Photographer of The Year","5211","Materials","22/06/2017"
"Wolverhampton City Council","http://opendatacommunities.org/id/metropolitan-district-council/wolverhampton","WP-HAYMARKET PUBLI","825.00","Corporate Procurement Unit","5192","Events","22/06/2017"
"Wolverhampton City Council","http://opendatacommunities.org/id/metropolitan-district-council/wolverhampton","POST OFFICE COUNTER","65.00","Intensive Family Support Team","9402","Comms - Postage","22/06/2017"
"Wolverhampton City Council","http://opendatacommunities.org/id/metropolitan-district-council/wolverhampton","SPORTSDIRECT.COM","179.97","Upper Pendeford Farm Childrens Home","5941","Equipment - Purchase","22/06/2017"
"Wolverhampton City Council","http://opendatacommunities.org/id/metropolitan-district-council/wolverhampton","Amazon EU","24.99","Upper Pendeford Farm Childrens Home","5969","Equipment - Purchase","22/06/2017"
"Wolverhampton City Council","http://opendatacommunities.org/id/metropolitan-district-council/wolverhampton","SAINSBURYS (2340)","14.10","Central Costs","5411","Provisions (Not for resale)","22/06/2017"
"Wolverhampton City Council","http://opendatacommunities.org/id/metropolitan-district-council/wolverhampton","THE POST OFFICE","153.85","Art Gallery","6051","Subsistence","22/06/2017"
"Wolverhampton City Council","http://opendatacommunities.org/id/metropolitan-district-council/wolverhampton","SERVISAIR UK LTD","24.00","Headstart Phase 3","7922","Subsistence","22/06/2017"
"Wolverhampton City Council","http://opendatacommunities.org/id/metropolitan-district-council/wolverhampton","COSTA COFFEE","5.12","Headstart Phase 3","5814","Subsistence","22/06/2017"
"Wolverhampton City Council","http://opendatacommunities.org/id/metropolitan-district-council/wolverhampton","TESCO STORES 5397","4.25","EIP Locality 1","5411","Provisions (Not for resale)","22/06/2017"
"Wolverhampton City Council","http://opendatacommunities.org/id/metropolitan-district-council/wolverhampton","TESCO STORES 5397","7.86","EIP Locality 1","5411","Financial Assistance In Exceptional Circ","22/06/2017"
"Wolverhampton City Council","http://opendatacommunities.org/id/metropolitan-district-council/wolverhampton","ALLPAY LTD","100.00","EIP Locality 1","8398","Financial Assistance In Exceptional Circ","22/06/2017"
"Wolverhampton City Council","http://opendatacommunities.org/id/metropolitan-district-council/wolverhampton","WWW.PCWB.COM","189.75","Condition Surveys","5734","Computing - Purchase of Software","22/06/2017"
"Wolverhampton City Council","http://opendatacommunities.org/id/metropolitan-district-council/wolverhampton","POST OFFICE COUNTER","58.75","LAC Team","9402","Comms - Postage","22/06/2017"
"Wolverhampton City Council","http://opendatacommunities.org/id/metropolitan-district-council/wolverhampton","TESCO STORES 5194","45.61","Towers Outdoor Education Centre","5411","Provisions (Not for resale)","22/06/2017"
"Wolverhampton City Council","http://opendatacommunities.org/id/metropolitan-district-council/wolverhampton","EWETSUITS.COM","37.33","Towers Outdoor Education Centre","5941","Equipment - Purchase","22/06/2017"
"Wolverhampton City Council","http://opendatacommunities.org/id/metropolitan-district-council/wolverhampton","Amazon UK Marketplace","19.99","Technical Support","5942","Books","22/06/2017"
"Wolverhampton City Council","http://opendatacommunities.org/id/metropolitan-district-council/wolverhampton","Trainline","124.03","Inclusion Support","4112","Public Transport","22/06/2017"
"Wolverhampton City Council","http://opendatacommunities.org/id/metropolitan-district-council/wolverhampton","G N GROSVENOR LTD","48.10","Play General","5983","Heating Oil","22/06/2017"
"Wolverhampton City Council","http://opendatacommunities.org/id/metropolitan-district-council/wolverhampton","BT PAY BY PHONE","213.30","Makers Dozen","4814","Comms - Telephone Call charges","22/06/2017"
"Wolverhampton City Council","http://opendatacommunities.org/id/metropolitan-district-council/wolverhampton","VIRGIN MEDIA PYMTS","536.00","Civic Halls Non Direct Management A/C","4814","Comms - Telephone Call charges","22/06/2017"
"Wolverhampton City Council","http://opendatacommunities.org/id/metropolitan-district-council/wolverhampton","VIRGIN MEDIA PYMTS","217.00","Civic Halls Non Direct Management A/C","4814","Comms - Telephone Call charges","22/06/2017"
"Wolverhampton City Council","http://opendatacommunities.org/id/metropolitan-district-council/wolverhampton","OFFICIALRECORDCOUK","15.98","CIN/CP Social Work Unit - Area 7","7392","Services - Consultants","22/06/2017"
"Wolverhampton City Council","http://opendatacommunities.org/id/metropolitan-district-council/wolverhampton","OFFICIALRECORDCOUK","15.98","CIN/CP Social Work Unit - Area 7","7392","Services - Consultants","22/06/2017"
"Wolverhampton City Council","http://opendatacommunities.org/id/metropolitan-district-council/wolverhampton","OFFICIALRECORDCOUK","15.98","CIN/CP Social Work Unit - Area 7","7392","Services - Consultants","22/06/2017"
"Wolverhampton City Council","http://opendatacommunities.org/id/metropolitan-district-council/wolverhampton","Amazon UK Marketplace","139.50","Education Business Partnership","5942","Equipment - Purchase","22/06/2017"
"Wolverhampton City Council","http://opendatacommunities.org/id/metropolitan-district-council/wolverhampton","AMAZON.CO.UK","9.89","Strategic ICTS (ICT Serv Budget)","5999","Equipment - Purchase","22/06/2017"
"Wolverhampton City Council","http://opendatacommunities.org/id/metropolitan-district-council/wolverhampton","Amazon UK Marketplace","72.03","Strategic ICTS (ICT Serv Budget)","5942","Equipment - Purchase","22/06/2017"
"Wolverhampton City Council","http://opendatacommunities.org/id/metropolitan-district-council/wolverhampton","WWW.ARGOS.CO.UK","-51.87","EIP Locality 5","5310","Equipment - Purchase","21/06/2017"
"Wolverhampton City Council","http://opendatacommunities.org/id/metropolitan-district-council/wolverhampton","WM MORRISONS","28.17","EIP Locality 5","5411","Grant Payments","21/06/2017"
"Wolverhampton City Council","http://opendatacommunities.org/id/metropolitan-district-council/wolverhampton","WILKO RETAIL LIMIT","18.21","Service Wide","5722","Equipment - R & M","21/06/2017"
"Wolverhampton City Council","http://opendatacommunities.org/id/metropolitan-district-council/wolverhampton","B&M RETAIL","85.57","LAC Transitions Team","5310","Client Allowances","21/06/2017"
"Wolverhampton City Council","http://opendatacommunities.org/id/metropolitan-district-council/wolverhampton","SEVERN TRENT WATER","42.42","LAC Transitions Team","4900","Client Allowances","21/06/2017"
"Wolverhampton City Council","http://opendatacommunities.org/id/metropolitan-district-council/wolverhampton","NCP BIRMINGHAM AIRPORT","61.41","Headstart Phase 3","7523","Parking Fees","21/06/2017"
"Wolverhampton City Council","http://opendatacommunities.org/id/metropolitan-district-council/wolverhampton","PARK INN HOTEL BELFAST","54.17","Headstart Phase 3","7011","Subsistence","21/06/2017"
"Wolverhampton City Council","http://opendatacommunities.org/id/metropolitan-district-council/wolverhampton","PARK INN HOTEL BELFAST","22.50","Headstart Phase 3","7011","Subsistence","21/06/2017"
"Wolverhampton City Council","http://opendatacommunities.org/id/metropolitan-district-council/wolverhampton","PARK INN BELFAST","165.83","Headstart Phase 3","7011","Accommodation Costs","21/06/2017"
"Wolverhampton City Council","http://opendatacommunities.org/id/metropolitan-district-council/wolverhampton","PARK INN BELFAST","140.83","Headstart Phase 3","7011","Accommodation Costs","21/06/2017"
"Wolverhampton City Council","http://opendatacommunities.org/id/metropolitan-district-council/wolverhampton","PARK INN BELFAST","140.83","Headstart Phase 3","7011","Accommodation Costs","21/06/2017"
"Wolverhampton City Council","http://opendatacommunities.org/id/metropolitan-district-council/wolverhampton","B & Q 1243","15.37","Hickman Avenue Depot","5211","R&M - Departmental planned (external)","21/06/2017"
"Wolverhampton City Council","http://opendatacommunities.org/id/metropolitan-district-council/wolverhampton","ARGOS RETAIL GROUP","8.99","EIP Locality 1","5310","Equipment - Purchase","21/06/2017"
"Wolverhampton City Council","http://opendatacommunities.org/id/metropolitan-district-council/wolverhampton","AUTOBASE (GB) LIMITED","72.53","Fleet Management","7538","Equipment - Purchase","21/06/2017"
"Wolverhampton City Council","http://opendatacommunities.org/id/metropolitan-district-council/wolverhampton","B&M RETAIL LTD","104.57","LAC Transitions Team","5310","Client Allowances","21/06/2017"
"Wolverhampton City Council","http://opendatacommunities.org/id/metropolitan-district-council/wolverhampton","CT WOLVERHAMPTON","35.00","LAC Transitions Team","8398","Client Allowances","21/06/2017"
"Wolverhampton City Council","http://opendatacommunities.org/id/metropolitan-district-council/wolverhampton","HIGHFIELD HOUSE HO","385.00","CIN/CP Social Work Unit - Area 3","7011","Services - Supplies & Services to users","21/06/2017"
"Wolverhampton City Council","http://opendatacommunities.org/id/metropolitan-district-council/wolverhampton","WWW.ICO.GOV.UK","35.00","Electoral Registration","9399","Subscriptions","21/06/2017"
"Wolverhampton City Council","http://opendatacommunities.org/id/metropolitan-district-council/wolverhampton","Amazon EU","24.73","EIP Locality 2","5969","Equipment - Purchase","21/06/2017"
"Wolverhampton City Council","http://opendatacommunities.org/id/metropolitan-district-council/wolverhampton","ALDI","16.21","Neighbourhood Management Central","5411","Provisions (Not for resale)","21/06/2017"
"Wolverhampton City Council","http://opendatacommunities.org/id/metropolitan-district-council/wolverhampton","Virgin Trains","12.90","Children & Young People Support Costs","4112","Public Transport","21/06/2017"
"Wolverhampton City Council","http://opendatacommunities.org/id/metropolitan-district-council/wolverhampton","AMAZON UK RETAIL AMAZO","62.07","Technical Support","5999","Equipment - Purchase","21/06/2017"
"Wolverhampton City Council","http://opendatacommunities.org/id/metropolitan-district-council/wolverhampton","TERMINUS CONTRACT HIRE","247.55","Technical Support","7512","Car Allowances","21/06/2017"
"Wolverhampton City Council","http://opendatacommunities.org/id/metropolitan-district-council/wolverhampton","Amazon UK Marketplace","35.00","Technical Support","5942","Books","21/06/2017"
"Wolverhampton City Council","http://opendatacommunities.org/id/metropolitan-district-council/wolverhampton","CENTRAL SOURCE LTD","56.73","Admin & Support","2741","Equipment - Purchase","21/06/2017"
"Wolverhampton City Council","http://opendatacommunities.org/id/metropolitan-district-council/wolverhampton","MOMENTUMHUB","357.71","Foundation Studies","4131","Public Transport","21/06/2017"
"Wolverhampton City Council","http://opendatacommunities.org/id/metropolitan-district-council/wolverhampton","PRINTCARRIER.COM","104.00","Bantock House Museum","2741","Marketing \ Non-staff advertising","21/06/2017"
"Wolverhampton City Council","http://opendatacommunities.org/id/metropolitan-district-council/wolverhampton","Trainline","24.02","Legal Services","4112","Public Transport","21/06/2017"
"Wolverhampton City Council","http://opendatacommunities.org/id/metropolitan-district-council/wolverhampton","THE COAL AUTHORITY","265.60","Legal Services","9399","Services - Fees and Charges","21/06/2017"
"Wolverhampton City Council","http://opendatacommunities.org/id/metropolitan-district-council/wolverhampton","HMCOURTS-SERVICE.G","20.00","Mental Health Assessment & Care Mgmt","9222","Services - Fees and Charges","21/06/2017"
"Wolverhampton City Council","http://opendatacommunities.org/id/metropolitan-district-council/wolverhampton","Virgin Trains","268.40","Members Expenses","4112","Public Transport","21/06/2017"
"Wolverhampton City Council","http://opendatacommunities.org/id/metropolitan-district-council/wolverhampton","Virgin Trains","53.90","Democratic Support","4112","Public Transport","21/06/2017"
"Wolverhampton City Council","http://opendatacommunities.org/id/metropolitan-district-council/wolverhampton","WAITROSE 696","24.14","Youth Offending Team","5411","Provisions (Not for resale)","21/06/2017"
"Wolverhampton City Council","http://opendatacommunities.org/id/metropolitan-district-council/wolverhampton","CODSALL AND WERGS GC","29.97","Cemeteries","5261","Equipment - Purchase","21/06/2017"
"Wolverhampton City Council","http://opendatacommunities.org/id/metropolitan-district-council/wolverhampton","LOVE2SHOP.CO.UK","203.50","Public Health Support Costs","8641","Educ Trips, Holidays, Outings, Activity","21/06/2017"
"Wolverhampton City Council","http://opendatacommunities.org/id/metropolitan-district-council/wolverhampton","PC WORLD ONLINE","847.50","Strategic ICTS (ICT Serv Budget)","5732","Equipment - Purchase","21/06/2017"
"Wolverhampton City Council","http://opendatacommunities.org/id/metropolitan-district-council/wolverhampton","WWW.GEAR4MUSIC.COM","790.82","Strategic ICTS (ICT Serv Budget)","5733","Equipment - Purchase","21/06/2017"
"Wolverhampton City Council","http://opendatacommunities.org/id/metropolitan-district-council/wolverhampton","DOLPHIN","180.00","Strategic ICTS (ICT Serv Budget)","5732","Equipment - Purchase","21/06/2017"
"Wolverhampton City Council","http://opendatacommunities.org/id/metropolitan-district-council/wolverhampton","Amazon UK Marketplace","48.63","Strategic ICTS (ICT Serv Budget)","5942","Books","21/06/2017"
"Wolverhampton City Council","http://opendatacommunities.org/id/metropolitan-district-council/wolverhampton","Trainline","175.03","Strategic ICTS (ICT Serv Budget)","4112","Public Transport","21/06/2017"
"Wolverhampton City Council","http://opendatacommunities.org/id/metropolitan-district-council/wolverhampton","POUNDSTRETCHER 147","8.03","Admin & Support","5714","Catering","21/06/2017"
"Wolverhampton City Council","http://opendatacommunities.org/id/metropolitan-district-council/wolverhampton","ALDI","21.62","Admin & Support","5411","Catering","21/06/2017"
"Wolverhampton City Council","http://opendatacommunities.org/id/metropolitan-district-council/wolverhampton","Trainline","57.17","LAC Education Team (LACE)","4112","Public Transport","21/06/2017"
"Wolverhampton City Council","http://opendatacommunities.org/id/metropolitan-district-council/wolverhampton","Amazon UK Marketplace","50.92","Strategic ICTS (ICT Serv Budget)","5942","Equipment - Purchase","21/06/2017"
"Wolverhampton City Council","http://opendatacommunities.org/id/metropolitan-district-council/wolverhampton","Amazon UK Marketplace","119.00","Strategic ICTS (ICT Serv Budget)","5942","Equipment - Purchase","21/06/2017"
"Wolverhampton City Council","http://opendatacommunities.org/id/metropolitan-district-council/wolverhampton","SHROPSHIRE COUNCIL","26.50","CIN/CP Social Work Unit - Area 3","8220","Training Expenses","21/06/2017"
"Wolverhampton City Council","http://opendatacommunities.org/id/metropolitan-district-council/wolverhampton","AMAZON.CO.UK","74.98","Upper Pendeford Farm Childrens Home","5999","Equipment - Purchase","21/06/2017"
"Wolverhampton City Council","http://opendatacommunities.org/id/metropolitan-district-council/wolverhampton","123-REG.CO.UK","148.90","Strategic ICTS (ICT Serv Budget)","4816","Computing - Purchase of Software","20/06/2017"
"Wolverhampton City Council","http://opendatacommunities.org/id/metropolitan-district-council/wolverhampton","NPOWER","251.33","CIN/CP Social Work Unit - Area 3","4900","Electricity","20/06/2017"
"Wolverhampton City Council","http://opendatacommunities.org/id/metropolitan-district-council/wolverhampton","W M MORRISONS.COM","65.67","Talk English","5411","Materials","20/06/2017"
"Wolverhampton City Council","http://opendatacommunities.org/id/metropolitan-district-council/wolverhampton","SAINSBURYS (2340)","164.43","Discretionary Fund","5411","Materials","20/06/2017"
"Wolverhampton City Council","http://opendatacommunities.org/id/metropolitan-district-council/wolverhampton","ARGOS RETAIL GROUP","91.62","Service Wide","5310","Equipment - Purchase","20/06/2017"
"Wolverhampton City Council","http://opendatacommunities.org/id/metropolitan-district-council/wolverhampton","Amazon UK Marketplace","125.00","Headstart Phase 3","5942","Furniture","20/06/2017"
"Wolverhampton City Council","http://opendatacommunities.org/id/metropolitan-district-council/wolverhampton","Amazon UK Marketplace","93.30","Headstart Phase 3","5942","Equipment - Purchase","20/06/2017"
"Wolverhampton City Council","http://opendatacommunities.org/id/metropolitan-district-council/wolverhampton","Cross Country Trains","49.00","Condition Surveys","4112","Public Transport","20/06/2017"
"Wolverhampton City Council","http://opendatacommunities.org/id/metropolitan-district-council/wolverhampton","TESCO DELIVERY SAVER2","2.92","Towers Outdoor Education Centre","5968","Provisions (Not for resale)","20/06/2017"
"Wolverhampton City Council","http://opendatacommunities.org/id/metropolitan-district-council/wolverhampton","COTSWOLD OUTDOOR-MAIL","1,007.80","Towers Outdoor Education Centre","5691","Equipment - Purchase","20/06/2017"
"Wolverhampton City Council","http://opendatacommunities.org/id/metropolitan-district-council/wolverhampton","WIX.COM","93.13","Technical Support","5968","Subscriptions","20/06/2017"
"Wolverhampton City Council","http://opendatacommunities.org/id/metropolitan-district-council/wolverhampton","Amazon EU","89.97","Technical Support","5969","Equipment - Purchase","20/06/2017"
"Wolverhampton City Council","http://opendatacommunities.org/id/metropolitan-district-council/wolverhampton","WWW.INTERCHANGECOMMS.C","29.50","SEN Early Years Team","8999","Conference Expenses","20/06/2017"
"Wolverhampton City Council","http://opendatacommunities.org/id/metropolitan-district-council/wolverhampton","G & M HALE (SUNDRIES)","19.00","Discretionary Fund","5992","Materials","20/06/2017"
"Wolverhampton City Council","http://opendatacommunities.org/id/metropolitan-district-council/wolverhampton","G & M HALE (SUNDRIES)","29.40","Discretionary Fund","5992","Materials","20/06/2017"
"Wolverhampton City Council","http://opendatacommunities.org/id/metropolitan-district-council/wolverhampton","G & M HALE LTD","57.05","Discretionary Fund","5992","Materials","20/06/2017"
"Wolverhampton City Council","http://opendatacommunities.org/id/metropolitan-district-council/wolverhampton","G & M HALE LTD","28.00","Talk English","5992","Materials","20/06/2017"
"Wolverhampton City Council","http://opendatacommunities.org/id/metropolitan-district-council/wolverhampton","G & M HALE LTD","160.70","Discretionary Fund","5992","Materials","20/06/2017"
"Wolverhampton City Council","http://opendatacommunities.org/id/metropolitan-district-council/wolverhampton","WATERSTONES","50.00","Mayoral Expenses","5942","Hospitality","20/06/2017"
"Wolverhampton City Council","http://opendatacommunities.org/id/metropolitan-district-council/wolverhampton","Amazon EU","21.66","School Improvement","5969","Equipment - Purchase","20/06/2017"
"Wolverhampton City Council","http://opendatacommunities.org/id/metropolitan-district-council/wolverhampton","PREMIERHAZARD.CO.U","45.09","Fleet Management","7538","Equipment - Purchase","20/06/2017"
"Wolverhampton City Council","http://opendatacommunities.org/id/metropolitan-district-council/wolverhampton","Amazon UK Marketplace","56.97","Technical Support","5942","Books","20/06/2017"
"Wolverhampton City Council","http://opendatacommunities.org/id/metropolitan-district-council/wolverhampton","ASDA SUPERSTORE","13.61","CIN/CP Social Work Unit - Area 5","5411","Provisions (Not for resale)","20/06/2017"
"Wolverhampton City Council","http://opendatacommunities.org/id/metropolitan-district-council/wolverhampton","WWW.MOVERSANDSHAKERS.U","150.00","Strategic Director Place","8699","Subscriptions","20/06/2017"
"Wolverhampton City Council","http://opendatacommunities.org/id/metropolitan-district-council/wolverhampton","ARGOS LTD","10.04","Arbor Scheme","5310","Equipment - Purchase","20/06/2017"
"Wolverhampton City Council","http://opendatacommunities.org/id/metropolitan-district-council/wolverhampton","NOVOTEL WOLVERHAMPTON","57.00","Adoption and Residence Team & Allowances","7011","Accommodation Costs","20/06/2017"
"Wolverhampton City Council","http://opendatacommunities.org/id/metropolitan-district-council/wolverhampton","ARGOS RETAIL GROUP","349.99","Delivery & OCE Development","5310","Equipment - Purchase","20/06/2017"
"Wolverhampton City Council","http://opendatacommunities.org/id/metropolitan-district-council/wolverhampton","E C STRAITON","266.96","Northicote Farm","0742","Services - Professional Fees","20/06/2017"
"Wolverhampton City Council","http://opendatacommunities.org/id/metropolitan-district-council/wolverhampton","MMS.CARDSAVEONLINEPAYM","6.61","Northicote Farm","5261","Equipment - R & M","20/06/2017"
"Wolverhampton City Council","http://opendatacommunities.org/id/metropolitan-district-council/wolverhampton","WWW.PRINTERLAND.CO","375.67","Communications & Marketing - General","7372","Computing - Consumables","20/06/2017"
"Wolverhampton City Council","http://opendatacommunities.org/id/metropolitan-district-council/wolverhampton","NCP BIRMINGHAM AIRPORT","63.69","Headstart Phase 3","7523","Parking Fees","20/06/2017"
"Wolverhampton City Council","http://opendatacommunities.org/id/metropolitan-district-council/wolverhampton","ARGOS RETAIL GROUP","297.07","Civic Halls Non Direct Management A/C","5310","Equipment - Purchase","20/06/2017"
"Wolverhampton City Council","http://opendatacommunities.org/id/metropolitan-district-council/wolverhampton","EE & T-MOBILE","148.02","Civic Halls Non Direct Management A/C","4814","Comms - Telephone Call charges","20/06/2017"
"Wolverhampton City Council","http://opendatacommunities.org/id/metropolitan-district-council/wolverhampton","PURE360","268.80","Audience Development","7372","Marketing \ Non-staff advertising","20/06/2017"
"Wolverhampton City Council","http://opendatacommunities.org/id/metropolitan-district-council/wolverhampton","PURE360","1,020.00","Audience Development","7372","Marketing \ Non-staff advertising","20/06/2017"
"Wolverhampton City Council","http://opendatacommunities.org/id/metropolitan-district-council/wolverhampton","ARGOS RETAIL GROUP","69.99","Civic Centre Catering","5310","Equipment - Purchase","20/06/2017"
"Wolverhampton City Council","http://opendatacommunities.org/id/metropolitan-district-council/wolverhampton","WWW.BOOKMYCOURSE.C","193.82","Central Training","8220","Training Expenses","20/06/2017"
"Wolverhampton City Council","http://opendatacommunities.org/id/metropolitan-district-council/wolverhampton","ASDA HOME SHOPPING","122.78","Ernest Bold Court","5411","Provisions (Not for resale)","20/06/2017"
"Wolverhampton City Council","http://opendatacommunities.org/id/metropolitan-district-council/wolverhampton","WWW.GOV.UK","10.00","Legal Services","8999","Services - Professional Fees","20/06/2017"
"Wolverhampton City Council","http://opendatacommunities.org/id/metropolitan-district-council/wolverhampton","AMAZON.CO.UK","79.52","Children & Family Contact Services","5999","Equipment - Purchase","20/06/2017"
"Wolverhampton City Council","http://opendatacommunities.org/id/metropolitan-district-council/wolverhampton","WWW.PTCTOOLS.CO.UK","11.64","Northicote Farm","5039","Equipment - R & M","20/06/2017"
"Wolverhampton City Council","http://opendatacommunities.org/id/metropolitan-district-council/wolverhampton","CT WOLVERHAMPTON","104.17","LAC Transitions Team","8398","Client Allowances","20/06/2017"
"Wolverhampton City Council","http://opendatacommunities.org/id/metropolitan-district-council/wolverhampton","WAITROSE 696","27.83","Youth Offending Team","5411","Provisions (Not for resale)","20/06/2017"
"Wolverhampton City Council","http://opendatacommunities.org/id/metropolitan-district-council/wolverhampton","UNTOUCHABLES","92.00","Cemeteries","5231","Materials","20/06/2017"
"Wolverhampton City Council","http://opendatacommunities.org/id/metropolitan-district-council/wolverhampton","WM MORRISONS","10.19","Early Years & Universal Service","5411","Provisions (Not for resale)","20/06/2017"
"Wolverhampton City Council","http://opendatacommunities.org/id/metropolitan-district-council/wolverhampton","THE SWIMMING POOL","89.98","Central Baths","5996","Equipment - Purchase","19/06/2017"
"Wolverhampton City Council","http://opendatacommunities.org/id/metropolitan-district-council/wolverhampton","THE NEW BRIDGE GUEST H","120.00","Emergency Duty Team","7011","Services - Supplies & Services to users","19/06/2017"
"Wolverhampton City Council","http://opendatacommunities.org/id/metropolitan-district-council/wolverhampton","HILTON","25.00","Service Director Disab & Mental Health","3504","Conference Expenses","19/06/2017"
"Wolverhampton City Council","http://opendatacommunities.org/id/metropolitan-district-council/wolverhampton","SAINSBURYS SACAT 2040","9.00","LAC Transitions Team","5411","Client Allowances","19/06/2017"
"Wolverhampton City Council","http://opendatacommunities.org/id/metropolitan-district-council/wolverhampton","AMAZON.CO.UK","129.08","Headstart Phase 3","5999","Equipment - Purchase","19/06/2017"
"Wolverhampton City Council","http://opendatacommunities.org/id/metropolitan-district-council/wolverhampton","Amazon UK Marketplace","47.47","Headstart Phase 3","5942","Equipment - Purchase","19/06/2017"
"Wolverhampton City Council","http://opendatacommunities.org/id/metropolitan-district-council/wolverhampton","SAINSBURYS 2040","11.70","Ernest Bold Court","5411","Provisions (Not for resale)","19/06/2017"
"Wolverhampton City Council","http://opendatacommunities.org/id/metropolitan-district-council/wolverhampton","PREMIER INN","189.98","Bridges & Subways","3811","TPP - Maintenance on Principal Roads","19/06/2017"
"Wolverhampton City Council","http://opendatacommunities.org/id/metropolitan-district-council/wolverhampton","CUMMINGS BROTHERS LOCK","45.00","Culwell Street Depot","7399","Equipment - Purchase","19/06/2017"
"Wolverhampton City Council","http://opendatacommunities.org/id/metropolitan-district-council/wolverhampton","CUMMINGS BROTHERS LOCK","8.33","Hickman Avenue Depot","7399","R&M - Departmental planned (external)","19/06/2017"
"Wolverhampton City Council","http://opendatacommunities.org/id/metropolitan-district-council/wolverhampton","Eviivo Limited","33.33","CIN/CP Social Work Unit - Area 6","7011","Services - Supplies & Services to users","19/06/2017"
"Wolverhampton City Council","http://opendatacommunities.org/id/metropolitan-district-council/wolverhampton","WM MORRISON 024","37.05","CIN/CP Social Work Unit - Area 2","5411","Section 17","19/06/2017"
"Wolverhampton City Council","http://opendatacommunities.org/id/metropolitan-district-council/wolverhampton","ASDA SUPERSTORE","26.55","EIP Locality 3","5411","Provisions (Not for resale)","19/06/2017"
"Wolverhampton City Council","http://opendatacommunities.org/id/metropolitan-district-council/wolverhampton","ASDA SUPERSTORE","56.58","EIP Locality 3","5411","Financial Assistance In Exceptional Circ","19/06/2017"
"Wolverhampton City Council","http://opendatacommunities.org/id/metropolitan-district-council/wolverhampton","KONICA MINOLTA BUSINES","316.19","Music Support Team","7399","Equipment - R & M","19/06/2017"
"Wolverhampton City Council","http://opendatacommunities.org/id/metropolitan-district-council/wolverhampton","GCL760R","-16.95","Delivery & OCE Development","7011","Services - Supplies & Services to users","19/06/2017"
"Wolverhampton City Council","http://opendatacommunities.org/id/metropolitan-district-council/wolverhampton","GCL760R","30.39","Delivery & OCE Development","7011","Subsistence","19/06/2017"
"Wolverhampton City Council","http://opendatacommunities.org/id/metropolitan-district-council/wolverhampton","GCL760R","166.67","Delivery & OCE Development","7011","Subsistence","19/06/2017"
"Wolverhampton City Council","http://opendatacommunities.org/id/metropolitan-district-council/wolverhampton","WEST COAST TRAINS","39.17","Delivery & OCE Development","4112","Subsistence","19/06/2017"
"Wolverhampton City Council","http://opendatacommunities.org/id/metropolitan-district-council/wolverhampton","Virgin Trains","126.85","Delivery & OCE Development","4112","Public Transport","19/06/2017"
"Wolverhampton City Council","http://opendatacommunities.org/id/metropolitan-district-council/wolverhampton","Amazon UK Marketplace","16.98","Members Expenses","5942","Equipment - Purchase","19/06/2017"
"Wolverhampton City Council","http://opendatacommunities.org/id/metropolitan-district-council/wolverhampton","GCL760R","67.80","Members Expenses","7011","Subsistence","19/06/2017"
"Wolverhampton City Council","http://opendatacommunities.org/id/metropolitan-district-council/wolverhampton","GCL760R","880.00","Members Expenses","7011","Accommodation Costs","19/06/2017"
"Wolverhampton City Council","http://opendatacommunities.org/id/metropolitan-district-council/wolverhampton","TFM FARM & COUNTRY SUP","7.05","Northicote Farm","5399","Materials","19/06/2017"
"Wolverhampton City Council","http://opendatacommunities.org/id/metropolitan-district-council/wolverhampton","GCL760R","264.00","Legal Services","7011","Services - Supplies & Services to users","19/06/2017"
"Wolverhampton City Council","http://opendatacommunities.org/id/metropolitan-district-council/wolverhampton","Amazon UK Marketplace","35.74","Children & Family Contact Services","5942","Equipment - Purchase","19/06/2017"
"Wolverhampton City Council","http://opendatacommunities.org/id/metropolitan-district-council/wolverhampton","Amazon UK Marketplace","7.87","Children & Family Contact Services","5942","Equipment - Purchase","19/06/2017"
"Wolverhampton City Council","http://opendatacommunities.org/id/metropolitan-district-council/wolverhampton","HOMEBASE LTD 103","7.87","Children & Family Contact Services","5211","Equipment - Purchase","19/06/2017"
"Wolverhampton City Council","http://opendatacommunities.org/id/metropolitan-district-council/wolverhampton","AMAZON.CO.UK","7.72","Children & Family Contact Services","5999","Equipment - Purchase","19/06/2017"
"Wolverhampton City Council","http://opendatacommunities.org/id/metropolitan-district-council/wolverhampton","Amazon UK Marketplace","8.99","Children & Family Contact Services","5942","Equipment - Purchase","19/06/2017"
"Wolverhampton City Council","http://opendatacommunities.org/id/metropolitan-district-council/wolverhampton","Mimeo","382.55","School Improvement","7338","Printing","19/06/2017"
"Wolverhampton City Council","http://opendatacommunities.org/id/metropolitan-district-council/wolverhampton","ARGOS RETAIL GROUP","17.99","Collections","5310","Equipment - Purchase","19/06/2017"
"Wolverhampton City Council","http://opendatacommunities.org/id/metropolitan-district-council/wolverhampton","Virgin Trains","81.85","Fostering Team & Allowances","4112","Public Transport","19/06/2017"
"Wolverhampton City Council","http://opendatacommunities.org/id/metropolitan-district-council/wolverhampton","POST OFFICE COUNTER","228.00","Fostering Team & Allowances","9402","Comms - Postage","19/06/2017"
"Wolverhampton City Council","http://opendatacommunities.org/id/metropolitan-district-council/wolverhampton","PRIMARK","142.80","EIP Locality 3","5651","Financial Assistance In Exceptional Circ","19/06/2017"
"Wolverhampton City Council","http://opendatacommunities.org/id/metropolitan-district-council/wolverhampton","ASDA SUPERSTORE","13.33","EIP Locality 3","5411","Provisions (Not for resale)","19/06/2017"
"Wolverhampton City Council","http://opendatacommunities.org/id/metropolitan-district-council/wolverhampton","Amazon EU","23.32","Environmental Health - Pub Prot - Gen","5969","Equipment - Purchase","19/06/2017"
"Wolverhampton City Council","http://opendatacommunities.org/id/metropolitan-district-council/wolverhampton","GCL760R","264.00","Strategic Director Place","7011","Accommodation Costs","19/06/2017"
"Wolverhampton City Council","http://opendatacommunities.org/id/metropolitan-district-council/wolverhampton","WWW.MOVERSANDSHAKERS.U","350.00","Strategic Director Place","8699","Subscriptions","19/06/2017"
"Wolverhampton City Council","http://opendatacommunities.org/id/metropolitan-district-council/wolverhampton","Trainline","45.13","CIN/CP Social Work Unit - Area 7","4112","Public Transport","19/06/2017"
"Wolverhampton City Council","http://opendatacommunities.org/id/metropolitan-district-council/wolverhampton","GCL760R","-264.00","Legal Services","7011","Services - Supplies & Services to users","19/06/2017"
"Wolverhampton City Council","http://opendatacommunities.org/id/metropolitan-district-council/wolverhampton","GRO HM PASSPORT OFFICE","-23.40","Legal Services","9399","Services - Fees and Charges","19/06/2017"
"Wolverhampton City Council","http://opendatacommunities.org/id/metropolitan-district-council/wolverhampton","GRO HM PASSPORT OFFICE","-23.40","Legal Services","9399","Services - Fees and Charges","19/06/2017"
"Wolverhampton City Council","http://opendatacommunities.org/id/metropolitan-district-council/wolverhampton","GRO HM PASSPORT OFFICE","-23.40","Legal Services","9399","Services - Fees and Charges","19/06/2017"
"Wolverhampton City Council","http://opendatacommunities.org/id/metropolitan-district-council/wolverhampton","GRO HM PASSPORT OFFICE","-23.40","Legal Services","9399","Services - Fees and Charges","19/06/2017"
"Wolverhampton City Council","http://opendatacommunities.org/id/metropolitan-district-council/wolverhampton","GRO HM PASSPORT OFFICE","-23.40","Legal Services","9399","Services - Fees and Charges","19/06/2017"
"Wolverhampton City Council","http://opendatacommunities.org/id/metropolitan-district-council/wolverhampton","GRO HM PASSPORT OFFICE","-23.40","Legal Services","9399","Services - Fees and Charges","19/06/2017"
"Wolverhampton City Council","http://opendatacommunities.org/id/metropolitan-district-council/wolverhampton","GRO HM PASSPORT OFFICE","-23.40","Legal Services","9399","Services - Fees and Charges","19/06/2017"
"Wolverhampton City Council","http://opendatacommunities.org/id/metropolitan-district-council/wolverhampton","GRO HM PASSPORT OFFICE","-23.40","Legal Services","9399","Services - Fees and Charges","19/06/2017"
"Wolverhampton City Council","http://opendatacommunities.org/id/metropolitan-district-council/wolverhampton","CUMMINGS BROTHERS LOCK","9.17","Public Conveniences","7399","Equipment - Purchase","19/06/2017"
"Wolverhampton City Council","http://opendatacommunities.org/id/metropolitan-district-council/wolverhampton","E01510300000000","100.00","MASH","6011","Financial Assistance In Exceptional Circ","19/06/2017"
"Wolverhampton City Council","http://opendatacommunities.org/id/metropolitan-district-council/wolverhampton","PREMIER INN","65.00","Tenancy Sustainment","3811","Services - Supplies & Services to users","19/06/2017"
"Wolverhampton City Council","http://opendatacommunities.org/id/metropolitan-district-council/wolverhampton","PREMIER INN","490.00","Tenancy Sustainment","3811","Services - Supplies & Services to users","19/06/2017"
"Wolverhampton City Council","http://opendatacommunities.org/id/metropolitan-district-council/wolverhampton","ASDAN","72.57","LAC Transitions Team","8299","Client Allowances","19/06/2017"
"Wolverhampton City Council","http://opendatacommunities.org/id/metropolitan-district-council/wolverhampton","AMAZON.CO.UK","26.79","Headstart Phase 3","5999","Stationery","19/06/2017"
"Wolverhampton City Council","http://opendatacommunities.org/id/metropolitan-district-council/wolverhampton","ROYAL BK OF SCOTLAND","150.00","Headstart Phase 3","6011","Financial Assistance In Exceptional Circ","19/06/2017"
"Wolverhampton City Council","http://opendatacommunities.org/id/metropolitan-district-council/wolverhampton","Amazon UK Marketplace","9.17","Headstart Phase 3","5942","Stationery","19/06/2017"
"Wolverhampton City Council","http://opendatacommunities.org/id/metropolitan-district-council/wolverhampton","WM MORRISON 024","25.62","Ernest Bold Court","5411","Provisions (Not for resale)","19/06/2017"
"Wolverhampton City Council","http://opendatacommunities.org/id/metropolitan-district-council/wolverhampton","WISEPOPSCOM","39.54","City Direct","7372","Computing - Purchase of Software","19/06/2017"
"Wolverhampton City Council","http://opendatacommunities.org/id/metropolitan-district-council/wolverhampton","SAINSBURYS 2040","379.25","LAC Transitions Team","5411","Client Allowances","19/06/2017"
"Wolverhampton City Council","http://opendatacommunities.org/id/metropolitan-district-council/wolverhampton","ROYAL CARPETS","125.00","LAC Transitions Team","5713","Client Allowances","19/06/2017"
"Wolverhampton City Council","http://opendatacommunities.org/id/metropolitan-district-council/wolverhampton","ASDA SUPERSTORE","8.86","Cemeteries","5411","Provisions (Not for resale)","19/06/2017"
"Wolverhampton City Council","http://opendatacommunities.org/id/metropolitan-district-council/wolverhampton","UNTOUCHABLES","20.42","Cemeteries","5231","Materials","19/06/2017"
"Wolverhampton City Council","http://opendatacommunities.org/id/metropolitan-district-council/wolverhampton","RIDDLE.COM","8.72","Healthy Lifestyles","5734","Computing - Purchase of Software","19/06/2017"
"Wolverhampton City Council","http://opendatacommunities.org/id/metropolitan-district-council/wolverhampton","BLAS AR FWYD CYF","127.57","Towers Outdoor Education Centre","5812","Educ Trips, Holidays, Outings, Activity","19/06/2017"
"Wolverhampton City Council","http://opendatacommunities.org/id/metropolitan-district-council/wolverhampton","Amazon EU","56.65","Towers Outdoor Education Centre","5969","Equipment - Purchase","19/06/2017"
"Wolverhampton City Council","http://opendatacommunities.org/id/metropolitan-district-council/wolverhampton","WYNNSTAY ARGICULTURAL","35.35","Towers Outdoor Education Centre","5311","Equipment - Purchase","19/06/2017"
"Wolverhampton City Council","http://opendatacommunities.org/id/metropolitan-district-council/wolverhampton","Amazon UK Marketplace","297.88","Technical Support","5942","Books","19/06/2017"
"Wolverhampton City Council","http://opendatacommunities.org/id/metropolitan-district-council/wolverhampton","Amazon UK Marketplace","13.55","Learning Technologies","5942","Books","19/06/2017"
"Wolverhampton City Council","http://opendatacommunities.org/id/metropolitan-district-council/wolverhampton","Amazon Prime","7.99","EIP Locality 3","5968","Subscriptions","19/06/2017"
"Wolverhampton City Council","http://opendatacommunities.org/id/metropolitan-district-council/wolverhampton","WOLVERHAMPTON ART","6.42","Education And Access","8299","Catering","19/06/2017"
"Wolverhampton City Council","http://opendatacommunities.org/id/metropolitan-district-council/wolverhampton","Virgintrains.co.uk","-117.00","Adoption and Residence Team & Allowances","4112","Public Transport","19/06/2017"
"Wolverhampton City Council","http://opendatacommunities.org/id/metropolitan-district-council/wolverhampton","HILTON","45.50","Managing Director","3504","Subsistence","19/06/2017"
"Wolverhampton City Council","http://opendatacommunities.org/id/metropolitan-district-council/wolverhampton","E01510300000000","60.00","Emergency Duty Team","6011","Financial Assistance In Exceptional Circ","16/06/2017"
"Wolverhampton City Council","http://opendatacommunities.org/id/metropolitan-district-council/wolverhampton","LIDL UK","4.95","Discretionary Fund","5411","Materials","16/06/2017"
"Wolverhampton City Council","http://opendatacommunities.org/id/metropolitan-district-council/wolverhampton","B&M RETAIL LTD","23.28","LAC Transitions Team","5310","Client Allowances","16/06/2017"
"Wolverhampton City Council","http://opendatacommunities.org/id/metropolitan-district-council/wolverhampton","AMAZON.CO.UK","154.12","Headstart Phase 3","5999","Equipment - Purchase","16/06/2017"
"Wolverhampton City Council","http://opendatacommunities.org/id/metropolitan-district-council/wolverhampton","PREMIER INN","85.82","Headstart Phase 3","3811","Accommodation Costs","16/06/2017"
"Wolverhampton City Council","http://opendatacommunities.org/id/metropolitan-district-council/wolverhampton","Amazon UK Marketplace","294.42","Headstart Phase 3","5942","Equipment - Purchase","16/06/2017"
"Wolverhampton City Council","http://opendatacommunities.org/id/metropolitan-district-council/wolverhampton","Trainline","20.55","Headstart Phase 3","4112","Public Transport","16/06/2017"
"Wolverhampton City Council","http://opendatacommunities.org/id/metropolitan-district-council/wolverhampton","Amazon UK Marketplace","20.28","Headstart - Learning Technologies Team","5942","Catering","16/06/2017"
"Wolverhampton City Council","http://opendatacommunities.org/id/metropolitan-district-council/wolverhampton","Amazon UK Marketplace","130.00","Headstart Phase 3","5942","Equipment - Purchase","16/06/2017"
"Wolverhampton City Council","http://opendatacommunities.org/id/metropolitan-district-council/wolverhampton","Amazon UK Marketplace","115.83","Headstart Phase 3","5942","Equipment - Purchase","16/06/2017"
"Wolverhampton City Council","http://opendatacommunities.org/id/metropolitan-district-council/wolverhampton","Amazon EU","128.95","Telecare","5969","Equipment - Purchase","16/06/2017"
"Wolverhampton City Council","http://opendatacommunities.org/id/metropolitan-district-council/wolverhampton","Amazon UK Marketplace","41.19","Telecare","5942","Equipment - R & M","16/06/2017"
"Wolverhampton City Council","http://opendatacommunities.org/id/metropolitan-district-council/wolverhampton","B&M RETAIL LTD","15.58","Headstart Phase 3","5310","Stationery","16/06/2017"
"Wolverhampton City Council","http://opendatacommunities.org/id/metropolitan-district-council/wolverhampton","HOME BARGAINS","13.18","Headstart Phase 3","5251","Stationery","16/06/2017"
"Wolverhampton City Council","http://opendatacommunities.org/id/metropolitan-district-council/wolverhampton","HOBBY CRAFT LTD","22.58","Headstart Phase 3","5970","Materials","16/06/2017"
"Wolverhampton City Council","http://opendatacommunities.org/id/metropolitan-district-council/wolverhampton","ASDA SUPERSTORE","2.44","Mayoral Expenses","5411","Hospitality","16/06/2017"
"Wolverhampton City Council","http://opendatacommunities.org/id/metropolitan-district-council/wolverhampton","Trainline","14.64","Transformation","4112","Public Transport","16/06/2017"
"Wolverhampton City Council","http://opendatacommunities.org/id/metropolitan-district-council/wolverhampton","WWW.CORAM.ORG.UK","47.20","Adoption and Residence Team & Allowances","8398","Services - Supplies & Services to users","16/06/2017"
"Wolverhampton City Council","http://opendatacommunities.org/id/metropolitan-district-council/wolverhampton","123-REG.CO.UK","119.88","Strategic ICTS (ICT Serv Budget)","4816","Computing - Purchase of Software","16/06/2017"
"Wolverhampton City Council","http://opendatacommunities.org/id/metropolitan-district-council/wolverhampton","SCREWFIX DIRECT","35.96","Caretakers Community Centre","5211","Materials","16/06/2017"
"Wolverhampton City Council","http://opendatacommunities.org/id/metropolitan-district-council/wolverhampton","WWW.HSSPORTS.CO.UK","182.40","Central Baths","5941","Equipment - Purchase","16/06/2017"
"Wolverhampton City Council","http://opendatacommunities.org/id/metropolitan-district-council/wolverhampton","HILTON","75.00","Delivery & OCE Development","3504","Subsistence","16/06/2017"
"Wolverhampton City Council","http://opendatacommunities.org/id/metropolitan-district-council/wolverhampton","HILTON","61.67","Delivery & OCE Development","3504","Subsistence","16/06/2017"
"Wolverhampton City Council","http://opendatacommunities.org/id/metropolitan-district-council/wolverhampton","HILTON","59.00","Delivery & OCE Development","3504","Subsistence","16/06/2017"
"Wolverhampton City Council","http://opendatacommunities.org/id/metropolitan-district-council/wolverhampton","HILTON","32.92","Delivery & OCE Development","3504","Subsistence","16/06/2017"
"Wolverhampton City Council","http://opendatacommunities.org/id/metropolitan-district-council/wolverhampton","HILTON","134.17","Delivery & OCE Development","3504","Subsistence","16/06/2017"
"Wolverhampton City Council","http://opendatacommunities.org/id/metropolitan-district-council/wolverhampton","HILTON","66.38","Delivery & OCE Development","3504","Subsistence","16/06/2017"
"Wolverhampton City Council","http://opendatacommunities.org/id/metropolitan-district-council/wolverhampton","WCT CATERING","12.25","Delivery & OCE Development","4112","Subsistence","16/06/2017"
"Wolverhampton City Council","http://opendatacommunities.org/id/metropolitan-district-council/wolverhampton","WCT CATERING","48.67","Delivery & OCE Development","4112","Subsistence","16/06/2017"
"Wolverhampton City Council","http://opendatacommunities.org/id/metropolitan-district-council/wolverhampton","KINGS ARMS","4.08","Delivery & OCE Development","5813","Subsistence","16/06/2017"
"Wolverhampton City Council","http://opendatacommunities.org/id/metropolitan-district-council/wolverhampton","KINGS ARMS","14.54","Delivery & OCE Development","5813","Subsistence","16/06/2017"
"Wolverhampton City Council","http://opendatacommunities.org/id/metropolitan-district-council/wolverhampton","KINGS ARMS","10.58","Delivery & OCE Development","5813","Subsistence","16/06/2017"
"Wolverhampton City Council","http://opendatacommunities.org/id/metropolitan-district-council/wolverhampton","KINGS ARMS","30.37","Delivery & OCE Development","5813","Subsistence","16/06/2017"
"Wolverhampton City Council","http://opendatacommunities.org/id/metropolitan-district-council/wolverhampton","Virgin Trains","41.60","Information Governance Team","4112","Public Transport","16/06/2017"
"Wolverhampton City Council","http://opendatacommunities.org/id/metropolitan-district-council/wolverhampton","REGISTRARS OFFICE","30.00","Legal Services","8299","Training Expenses","16/06/2017"
"Wolverhampton City Council","http://opendatacommunities.org/id/metropolitan-district-council/wolverhampton","REGISTRARS OFFICE","210.00","Legal Services","8299","Training Expenses","16/06/2017"
"Wolverhampton City Council","http://opendatacommunities.org/id/metropolitan-district-council/wolverhampton","GRO HM PASSPORT OFFICE","23.40","Legal Services","9399","Services - Fees and Charges","16/06/2017"
"Wolverhampton City Council","http://opendatacommunities.org/id/metropolitan-district-council/wolverhampton","GRO HM PASSPORT OFFICE","163.80","Legal Services","9399","Services - Fees and Charges","16/06/2017"
"Wolverhampton City Council","http://opendatacommunities.org/id/metropolitan-district-council/wolverhampton","HOMEBASE LTD 103","11.87","Children & Family Contact Services","5211","Equipment - Purchase","16/06/2017"
"Wolverhampton City Council","http://opendatacommunities.org/id/metropolitan-district-council/wolverhampton","HOMEBASE LTD 103","49.42","Children & Family Contact Services","5211","Equipment - Purchase","16/06/2017"
"Wolverhampton City Council","http://opendatacommunities.org/id/metropolitan-district-council/wolverhampton","Amazon UK Marketplace","4.22","Children & Family Contact Services","5942","Equipment - Purchase","16/06/2017"
"Wolverhampton City Council","http://opendatacommunities.org/id/metropolitan-district-council/wolverhampton","Trainline","197.88","CIN/CP Social Work Unit - Area 4","4112","Public Transport","16/06/2017"
"Wolverhampton City Council","http://opendatacommunities.org/id/metropolitan-district-council/wolverhampton","ALBRIGHTON FEEDS LIMIT","56.20","Parks - Ranger Service","5995","Materials","16/06/2017"
"Wolverhampton City Council","http://opendatacommunities.org/id/metropolitan-district-council/wolverhampton","HOME BARGAINS WOLVERHA","27.53","LAC Transitions Team","5251","Client Allowances","16/06/2017"
"Wolverhampton City Council","http://opendatacommunities.org/id/metropolitan-district-council/wolverhampton","HOME BARGAINS WOLVERHA","32.60","LAC Transitions Team","5251","Accommodation Costs","16/06/2017"
"Wolverhampton City Council","http://opendatacommunities.org/id/metropolitan-district-council/wolverhampton","HOME BARGAINS WOLVERHA","82.01","LAC Transitions Team","5251","Client Allowances","16/06/2017"
"Wolverhampton City Council","http://opendatacommunities.org/id/metropolitan-district-council/wolverhampton","CUMMINGS BROTHERS LOCK","13.33","Hickman Avenue Depot","7399","R&M - Departmental planned (external)","16/06/2017"
"Wolverhampton City Council","http://opendatacommunities.org/id/metropolitan-district-council/wolverhampton","CUMMINGS BROTHERS LOCK","2.50","Statutory Services (10RM)","7399","R&M - Departmental planned (external)","16/06/2017"
"Wolverhampton City Council","http://opendatacommunities.org/id/metropolitan-district-council/wolverhampton","CUMMINGS BROTHERS LOCK","16.67","Caretakers Community Centre","7399","R&M - Departmental planned (external)","16/06/2017"
"Wolverhampton City Council","http://opendatacommunities.org/id/metropolitan-district-council/wolverhampton","CUMMINGS BROTHERS LOCK","25.00","Caretakers Community Centre","7399","R&M - Departmental planned (external)","16/06/2017"
"Wolverhampton City Council","http://opendatacommunities.org/id/metropolitan-district-council/wolverhampton","Amazon UK Marketplace","45.51","Global Budgets","5942","Books","16/06/2017"
"Wolverhampton City Council","http://opendatacommunities.org/id/metropolitan-district-council/wolverhampton","GEO E DAVIES","24.95","Bradley Resource Centre","5732","Equipment - R & M","16/06/2017"
"Wolverhampton City Council","http://opendatacommunities.org/id/metropolitan-district-council/wolverhampton","BIBBY FACTORS LEICESTE","351.05","Black Country Gold","6012","Services - Fees and Charges","16/06/2017"
"Wolverhampton City Council","http://opendatacommunities.org/id/metropolitan-district-council/wolverhampton","Amazon UK Marketplace","16.75","Global Budgets","5942","Books","16/06/2017"
"Wolverhampton City Council","http://opendatacommunities.org/id/metropolitan-district-council/wolverhampton","SUITES AND BEDS","37.50","LAC Transitions Team","5712","Client Allowances","16/06/2017"
"Wolverhampton City Council","http://opendatacommunities.org/id/metropolitan-district-council/wolverhampton","JACKSON LIFT SERVICES","205.00","The Little Civic","1731","Equipment - R & M","16/06/2017"
"Wolverhampton City Council","http://opendatacommunities.org/id/metropolitan-district-council/wolverhampton","WWW.CARESHOP.CO.UK","76.95","Ernest Bold Court","5999","Equipment - Purchase","16/06/2017"
"Wolverhampton City Council","http://opendatacommunities.org/id/metropolitan-district-council/wolverhampton","REGISTRARS OFFICE","-210.00","Legal Services","8299","Training Expenses","16/06/2017"
"Wolverhampton City Council","http://opendatacommunities.org/id/metropolitan-district-council/wolverhampton","FlybeA17G A17G4L","418.14","Headstart Phase 3","4511","Public Transport","15/06/2017"
"Wolverhampton City Council","http://opendatacommunities.org/id/metropolitan-district-council/wolverhampton","CARVER/WOLVERHAMPTON/L","21.95","Public Conveniences","5211","Equipment - Purchase","15/06/2017"
"Wolverhampton City Council","http://opendatacommunities.org/id/metropolitan-district-council/wolverhampton","ROYAL CARPETS","150.00","LAC Transitions Team","5713","Client Allowances","15/06/2017"
"Wolverhampton City Council","http://opendatacommunities.org/id/metropolitan-district-council/wolverhampton","TESCO STORES 5194","-7.00","Towers Outdoor Education Centre","5411","Provisions (Not for resale)","15/06/2017"
"Wolverhampton City Council","http://opendatacommunities.org/id/metropolitan-district-council/wolverhampton","BETTWS MOTORS LIMITED","63.55","Towers Outdoor Education Centre","7538","Vehicle Maintenance - Repairs","15/06/2017"
"Wolverhampton City Council","http://opendatacommunities.org/id/metropolitan-district-council/wolverhampton","HSBC INVOICE FINAN","568.21","Towers Outdoor Education Centre","6012","Laundry Expenses","15/06/2017"
"Wolverhampton City Council","http://opendatacommunities.org/id/metropolitan-district-council/wolverhampton","HARLECH FOODSERVICE LT","149.53","Towers Outdoor Education Centre","5422","Catering","15/06/2017"
"Wolverhampton City Council","http://opendatacommunities.org/id/metropolitan-district-council/wolverhampton","CHEMSOL CYMRU LTD","181.46","Towers Outdoor Education Centre","5199","Equipment - Purchase","15/06/2017"
"Wolverhampton City Council","http://opendatacommunities.org/id/metropolitan-district-council/wolverhampton","C L JONES LIMITED","184.91","Towers Outdoor Education Centre","5211","Fixtures and Fittings - Purchases","15/06/2017"
"Wolverhampton City Council","http://opendatacommunities.org/id/metropolitan-district-council/wolverhampton","HN NUTTALL LTD","540.82","Towers Outdoor Education Centre","5085","Equipment - Purchase","15/06/2017"
"Wolverhampton City Council","http://opendatacommunities.org/id/metropolitan-district-council/wolverhampton","Trainline","121.07","Carers Support","4112","Public Transport","15/06/2017"
"Wolverhampton City Council","http://opendatacommunities.org/id/metropolitan-district-council/wolverhampton","HSBC CASH MACHINE","100.00","Carers Support","6011","Financial Assistance In Exceptional Circ","15/06/2017"
"Wolverhampton City Council","http://opendatacommunities.org/id/metropolitan-district-council/wolverhampton","WWW.HIGHFIELD.CO.UK","298.33","School Meals Statutory Standards","2741","Training Expenses","15/06/2017"
"Wolverhampton City Council","http://opendatacommunities.org/id/metropolitan-district-council/wolverhampton","WWW.HIGHFIELD.CO.UK","83.00","School Meals Statutory Standards","2741","Training Expenses","15/06/2017"
"Wolverhampton City Council","http://opendatacommunities.org/id/metropolitan-district-council/wolverhampton","Trainline","129.54","Head of Corporate Landlord","4112","Public Transport","15/06/2017"
"Wolverhampton City Council","http://opendatacommunities.org/id/metropolitan-district-council/wolverhampton","Trainline","34.73","Service Director City Economy","4112","Public Transport","15/06/2017"
"Wolverhampton City Council","http://opendatacommunities.org/id/metropolitan-district-council/wolverhampton","MARKS&SPENCER PLC SACA","2.40","Civic Centre Catering","5411","Provisions (Not for resale)","15/06/2017"
"Wolverhampton City Council","http://opendatacommunities.org/id/metropolitan-district-council/wolverhampton","EDMUNDSON ELECTRICAL L","8.34","Education Catering - General Overheads","5065","Equipment - R & M","15/06/2017"
"Wolverhampton City Council","http://opendatacommunities.org/id/metropolitan-district-council/wolverhampton","SAFETYBOOTSUK","144.82","Property Services - Building Maintenance","5661","Clothing / Uniforms","15/06/2017"
"Wolverhampton City Council","http://opendatacommunities.org/id/metropolitan-district-council/wolverhampton","HM PASSPORT","90.00","CIN/CP Social Work Unit - Area 7","9399","Services - Fees and Charges","15/06/2017"
"Wolverhampton City Council","http://opendatacommunities.org/id/metropolitan-district-council/wolverhampton","HOMEBASE LTD 103","4.68","Children & Family Contact Services","5211","Materials","15/06/2017"
"Wolverhampton City Council","http://opendatacommunities.org/id/metropolitan-district-council/wolverhampton","HOTEL IBIS","96.12","Adoption and Residence Team & Allowances","3533","Accommodation Costs","15/06/2017"
"Wolverhampton City Council","http://opendatacommunities.org/id/metropolitan-district-council/wolverhampton","WWW.WMCA.CO.UK","440.00","CIN/CP Social Work Unit - Area 3","9399","Client Transport","15/06/2017"
"Wolverhampton City Council","http://opendatacommunities.org/id/metropolitan-district-council/wolverhampton","TFM FARM & COUNTRY SUP","238.84","Northicote Farm","5399","Equipment - R & M","15/06/2017"
"Wolverhampton City Council","http://opendatacommunities.org/id/metropolitan-district-council/wolverhampton","AMAZON UK RETAIL AMAZO","47.97","Strategic ICTS (ICT Serv Budget)","5999","Equipment - Purchase","15/06/2017"
"Wolverhampton City Council","http://opendatacommunities.org/id/metropolitan-district-council/wolverhampton","WWW.DERBY.GOV.UK","11.20","CIN/CP Social Work Unit - Area 3","9399","Services - Fees and Charges","15/06/2017"
"Wolverhampton City Council","http://opendatacommunities.org/id/metropolitan-district-council/wolverhampton","HTTPS://WWW.ESTORE.WLV","350.00","Headstart Phase 3","8220","Conference Expenses","15/06/2017"
"Wolverhampton City Council","http://opendatacommunities.org/id/metropolitan-district-council/wolverhampton","HTTPS://WWW.ESTORE.WLV","350.00","Headstart Phase 3","8220","Conference Expenses","15/06/2017"
"Wolverhampton City Council","http://opendatacommunities.org/id/metropolitan-district-council/wolverhampton","WOLVERHAMPTON CC","2.50","Headstart Phase 3","7523","Parking Fees","15/06/2017"
"Wolverhampton City Council","http://opendatacommunities.org/id/metropolitan-district-council/wolverhampton","FlybeA17X A17X9C","209.07","Headstart Phase 3","4511","Public Transport","15/06/2017"
"Wolverhampton City Council","http://opendatacommunities.org/id/metropolitan-district-council/wolverhampton","HOME BARGAINS","7.87","Headstart Phase 3","5251","Subsistence","15/06/2017"
"Wolverhampton City Council","http://opendatacommunities.org/id/metropolitan-district-council/wolverhampton","Amazon UK Marketplace","19.99","EIP Locality 8","5942","Grant Payments","15/06/2017"
"Wolverhampton City Council","http://opendatacommunities.org/id/metropolitan-district-council/wolverhampton","LOOP11.COM","160.93","City Direct","7372","Computing - Purchase of Software","15/06/2017"
"Wolverhampton City Council","http://opendatacommunities.org/id/metropolitan-district-council/wolverhampton","ITUNES.COM/BILL","2.49","LAC Education Team (LACE)","5735","Computing - Purchase of Software","15/06/2017"
"Wolverhampton City Council","http://opendatacommunities.org/id/metropolitan-district-council/wolverhampton","Virgintrains.co.uk","-117.00","Adoption and Residence Team & Allowances","4112","Public Transport","15/06/2017"
"Wolverhampton City Council","http://opendatacommunities.org/id/metropolitan-district-council/wolverhampton","Virgin Trains","104.00","Adoption and Residence Team & Allowances","4112","Public Transport","15/06/2017"
"Wolverhampton City Council","http://opendatacommunities.org/id/metropolitan-district-council/wolverhampton","WWW.SCHOLASTIC.CO.UK","149.70","School Improvement","5192","Books","14/06/2017"
"Wolverhampton City Council","http://opendatacommunities.org/id/metropolitan-district-council/wolverhampton","AUTOBASE (GB) LIMITED","113.88","Fleet Management","7538","Equipment - Purchase","14/06/2017"
"Wolverhampton City Council","http://opendatacommunities.org/id/metropolitan-district-council/wolverhampton","CO-OPERATIVE FOOD","38.10","LAC Transitions Team","5411","Client Allowances","14/06/2017"
"Wolverhampton City Council","http://opendatacommunities.org/id/metropolitan-district-council/wolverhampton","PREMIER INN","93.32","Adoption and Residence Team & Allowances","3811","Accommodation Costs","14/06/2017"
"Wolverhampton City Council","http://opendatacommunities.org/id/metropolitan-district-council/wolverhampton","Trainline","28.51","CIN/CP Social Work Unit - Area 6","4112","Section 17","14/06/2017"
"Wolverhampton City Council","http://opendatacommunities.org/id/metropolitan-district-council/wolverhampton","MARKS&SPENCER PLC SACA","13.05","Communications & Marketing - General","5411","Provisions (Not for resale)","14/06/2017"
"Wolverhampton City Council","http://opendatacommunities.org/id/metropolitan-district-council/wolverhampton","CO-OPERATIVE FOOD","18.14","Headstart - Young People Engagement","5411","Provisions (Not for resale)","14/06/2017"
"Wolverhampton City Council","http://opendatacommunities.org/id/metropolitan-district-council/wolverhampton","E08008500000000","100.00","Headstart - Young People Engagement","6011","Financial Assistance In Exceptional Circ","14/06/2017"
"Wolverhampton City Council","http://opendatacommunities.org/id/metropolitan-district-council/wolverhampton","NOTEMACHINE","100.00","Childrens with Disabilities Team","6011","No Recourse to Public Funds","14/06/2017"
"Wolverhampton City Council","http://opendatacommunities.org/id/metropolitan-district-council/wolverhampton","NOTEMACHINE","250.00","Childrens with Disabilities Team","6011","No Recourse to Public Funds","14/06/2017"
"Wolverhampton City Council","http://opendatacommunities.org/id/metropolitan-district-council/wolverhampton","Amazon UK Marketplace","42.33","EIP Locality 8","5942","Grant Payments","14/06/2017"
"Wolverhampton City Council","http://opendatacommunities.org/id/metropolitan-district-council/wolverhampton","ASDA SUPERSTORE","190.00","CIN/CP Social Work Unit - Area 3","5411","Provisions (Not for resale)","14/06/2017"
"Wolverhampton City Council","http://opendatacommunities.org/id/metropolitan-district-council/wolverhampton","ASDA HOME SHOPPING","47.77","Upper Pendeford Farm Childrens Home","5411","Provisions (Not for resale)","14/06/2017"
"Wolverhampton City Council","http://opendatacommunities.org/id/metropolitan-district-council/wolverhampton","ASDA HOME SHOPPING",".13","Upper Pendeford Farm Childrens Home","5411","Provisions (Not for resale)","14/06/2017"
"Wolverhampton City Council","http://opendatacommunities.org/id/metropolitan-district-council/wolverhampton","JOHNSON CLEANERS","15.80","Service Wide","7216","Equipment - R & M","14/06/2017"
"Wolverhampton City Council","http://opendatacommunities.org/id/metropolitan-district-council/wolverhampton","WWW.AMEY.CO.UK","330.00","Central Costs","5211","Materials","14/06/2017"
"Wolverhampton City Council","http://opendatacommunities.org/id/metropolitan-district-council/wolverhampton","CARVER/WOLVERHAMPTON/L","8.49","Caretakers Community Centre","5211","R&M - Departmental planned (external)","14/06/2017"
"Wolverhampton City Council","http://opendatacommunities.org/id/metropolitan-district-council/wolverhampton","ARGOS LTD","16.49","CIN/CP Social Work Unit - Area 2","5310","Section 17","14/06/2017"
"Wolverhampton City Council","http://opendatacommunities.org/id/metropolitan-district-council/wolverhampton","PREMIER INN","481.00","Tenancy Sustainment","3811","Services - Supplies & Services to users","14/06/2017"
"Wolverhampton City Council","http://opendatacommunities.org/id/metropolitan-district-council/wolverhampton","B&M RETAIL LTD","143.69","LAC Transitions Team","5310","Client Allowances","14/06/2017"
"Wolverhampton City Council","http://opendatacommunities.org/id/metropolitan-district-council/wolverhampton","Amazon UK Marketplace","24.99","EIP Locality 8","5942","Grant Payments","14/06/2017"
"Wolverhampton City Council","http://opendatacommunities.org/id/metropolitan-district-council/wolverhampton","WWW.ARGOS.CO.UK","160.61","LAC Transitions Team","5310","Client Allowances","14/06/2017"
"Wolverhampton City Council","http://opendatacommunities.org/id/metropolitan-district-council/wolverhampton","WEST COAST TRAINS","7.00","Strategic ICTS (ICT Serv Budget)","4112","Public Transport","14/06/2017"
"Wolverhampton City Council","http://opendatacommunities.org/id/metropolitan-district-council/wolverhampton","SCREWFIX DIRECT LT","19.17","Caretakers Community Centre","5211","Materials","14/06/2017"
"Wolverhampton City Council","http://opendatacommunities.org/id/metropolitan-district-council/wolverhampton","ASDA SUPERSTORE","110.00","CIN/CP Social Work Unit - Area 3","5411","Provisions (Not for resale)","14/06/2017"
"Wolverhampton City Council","http://opendatacommunities.org/id/metropolitan-district-council/wolverhampton","TESCO STORES 5194","228.14","Towers Outdoor Education Centre","5411","Provisions (Not for resale)","14/06/2017"
"Wolverhampton City Council","http://opendatacommunities.org/id/metropolitan-district-council/wolverhampton","FUEL CARD SERVICES LTD","358.49","Towers Outdoor Education Centre","7399","Equipment - Purchase","14/06/2017"
"Wolverhampton City Council","http://opendatacommunities.org/id/metropolitan-district-council/wolverhampton","KEY INDUSTRIAL EQUIP L","51.00","Towers Outdoor Education Centre","5085","Equipment - Purchase","14/06/2017"
"Wolverhampton City Council","http://opendatacommunities.org/id/metropolitan-district-council/wolverhampton","Trainline","9.64","CIN/CP Social Work Unit - Area 6","4112","Section 17","14/06/2017"
"Wolverhampton City Council","http://opendatacommunities.org/id/metropolitan-district-council/wolverhampton","E01510300000000","240.00","Delivery & OCE Development","6011","Financial Assistance In Exceptional Circ","14/06/2017"
"Wolverhampton City Council","http://opendatacommunities.org/id/metropolitan-district-council/wolverhampton","HIGHFIELD HOUSE HO","385.00","CIN/CP Social Work Unit - Area 3","7011","No Recourse to Public Funds","14/06/2017"
"Wolverhampton City Council","http://opendatacommunities.org/id/metropolitan-district-council/wolverhampton","THE HOME OFFICE","1,544.96","Licensing - General","9399","Services - Fees and Charges","14/06/2017"
"Wolverhampton City Council","http://opendatacommunities.org/id/metropolitan-district-council/wolverhampton","TFM FARM & COUNTRY SUP","208.82","Northicote Farm","5399","Materials","14/06/2017"
"Wolverhampton City Council","http://opendatacommunities.org/id/metropolitan-district-council/wolverhampton","Amazon UK Marketplace","42.66","Towers Outdoor Education Centre","5942","Equipment - Purchase","14/06/2017"
"Wolverhampton City Council","http://opendatacommunities.org/id/metropolitan-district-council/wolverhampton","HTTPS://WWW.ESTORE.WLV","700.00","Learning Technologies","8220","Training Expenses","14/06/2017"
"Wolverhampton City Council","http://opendatacommunities.org/id/metropolitan-district-council/wolverhampton","Amazon UK Marketplace","18.79","Technical Support","5942","Books","14/06/2017"
"Wolverhampton City Council","http://opendatacommunities.org/id/metropolitan-district-council/wolverhampton","WWW.HFE-SIGNS.CO.UK","65.49","Headstart Phase 3","2741","Publications","14/06/2017"
"Wolverhampton City Council","http://opendatacommunities.org/id/metropolitan-district-council/wolverhampton","WWW.HFE-SIGNS.CO.UK","94.50","Technical Support","2741","Publications","14/06/2017"
"Wolverhampton City Council","http://opendatacommunities.org/id/metropolitan-district-council/wolverhampton","Amazon EU","254.34","Technical Support","5969","Equipment - Purchase","14/06/2017"
"Wolverhampton City Council","http://opendatacommunities.org/id/metropolitan-district-council/wolverhampton","MARKS&SPENCER PLC SACA","42.40","Civic Centre Catering","5411","Provisions (Not for resale)","14/06/2017"
"Wolverhampton City Council","http://opendatacommunities.org/id/metropolitan-district-council/wolverhampton","ASDA HOME SHOPPING","130.98","Ernest Bold Court","5411","Provisions (Not for resale)","13/06/2017"
"Wolverhampton City Council","http://opendatacommunities.org/id/metropolitan-district-council/wolverhampton","WM MORRISON 024","2.00","Ernest Bold Court","5411","Provisions (Not for resale)","13/06/2017"
"Wolverhampton City Council","http://opendatacommunities.org/id/metropolitan-district-council/wolverhampton","Amazon UK Marketplace","40.00","EIP Locality 8","5942","Grant Payments","13/06/2017"
"Wolverhampton City Council","http://opendatacommunities.org/id/metropolitan-district-council/wolverhampton","Amazon UK Marketplace","5.50","Strategic ICTS (ICT Serv Budget)","5942","Computing - Consumables","13/06/2017"
"Wolverhampton City Council","http://opendatacommunities.org/id/metropolitan-district-council/wolverhampton","THE POST OFFICE","29.85","CIN/CP Social Work Unit - Area 3","9402","Comms - Postage","13/06/2017"
"Wolverhampton City Council","http://opendatacommunities.org/id/metropolitan-district-council/wolverhampton","W M MORRISONS.COM","176.04","Discretionary Fund","5411","Materials","13/06/2017"
"Wolverhampton City Council","http://opendatacommunities.org/id/metropolitan-district-council/wolverhampton","WILKO RETAIL LIMIT","2.08","Service Wide","5722","Equipment - R & M","13/06/2017"
"Wolverhampton City Council","http://opendatacommunities.org/id/metropolitan-district-council/wolverhampton","WILKO RETAIL LIMIT","13.33","Service Wide","5722","Equipment - R & M","13/06/2017"
"Wolverhampton City Council","http://opendatacommunities.org/id/metropolitan-district-council/wolverhampton","B&M RETAIL","10.81","LAC Transitions Team","5310","Client Allowances","13/06/2017"
"Wolverhampton City Council","http://opendatacommunities.org/id/metropolitan-district-council/wolverhampton","Virgin Trains","74.20","Housing Regeneration - Strategy & Dev","4112","Public Transport","13/06/2017"
"Wolverhampton City Council","http://opendatacommunities.org/id/metropolitan-district-council/wolverhampton","TESCO STORES 5194","49.31","Towers Outdoor Education Centre","5411","Provisions (Not for resale)","13/06/2017"
"Wolverhampton City Council","http://opendatacommunities.org/id/metropolitan-district-council/wolverhampton","AVON COSMETICS LTD","25.42","Towers Outdoor Education Centre","5977","Equipment - Purchase","13/06/2017"
"Wolverhampton City Council","http://opendatacommunities.org/id/metropolitan-district-council/wolverhampton","Wix.com","93.13","Technical Support","5817","Computing - Purchase of Software","13/06/2017"
"Wolverhampton City Council","http://opendatacommunities.org/id/metropolitan-district-council/wolverhampton","Trainline","11.17","Head of Service - LAC","4112","Public Transport","13/06/2017"
"Wolverhampton City Council","http://opendatacommunities.org/id/metropolitan-district-council/wolverhampton","EB  WWBF JULY 2017 EVE","5.00","Business Engagement","7399","Events","13/06/2017"
"Wolverhampton City Council","http://opendatacommunities.org/id/metropolitan-district-council/wolverhampton","EB  WOMEN IN BUSINESS","6.00","Business Engagement","7399","Marketing \ Non-staff advertising","13/06/2017"
"Wolverhampton City Council","http://opendatacommunities.org/id/metropolitan-district-council/wolverhampton","WWW.CIM.CO.UK","15.00","Business Engagement","8999","Services - Professional Fees","13/06/2017"
"Wolverhampton City Council","http://opendatacommunities.org/id/metropolitan-district-council/wolverhampton","EB  NACHURAL SUMMER BU","198.58","Strategic Director Place","7399","Events","13/06/2017"
"Wolverhampton City Council","http://opendatacommunities.org/id/metropolitan-district-council/wolverhampton","Trainline","77.72","Energy Management","4112","Public Transport","13/06/2017"
"Wolverhampton City Council","http://opendatacommunities.org/id/metropolitan-district-council/wolverhampton","TVLICENSING.CO.UK","147.00","The Little Civic","7392","Services - General Licences","13/06/2017"
"Wolverhampton City Council","http://opendatacommunities.org/id/metropolitan-district-council/wolverhampton","WOLVERHAMPTON CITY COU","21.00","Northicote Farm","9399","Services - General Licences","13/06/2017"
"Wolverhampton City Council","http://opendatacommunities.org/id/metropolitan-district-council/wolverhampton","G & M HALE (SUNDRIES)","7.50","Creative Studies Delivery Area","5992","Materials for resale","13/06/2017"
"Wolverhampton City Council","http://opendatacommunities.org/id/metropolitan-district-council/wolverhampton","G & M HALE (SUNDRIES)","40.60","Discretionary Fund","5992","Materials","13/06/2017"
"Wolverhampton City Council","http://opendatacommunities.org/id/metropolitan-district-council/wolverhampton","G & M HALE LTD","151.20","Discretionary Fund","5992","Materials","13/06/2017"
"Wolverhampton City Council","http://opendatacommunities.org/id/metropolitan-district-council/wolverhampton","G & M HALE LTD","63.85","Creative Studies Delivery Area","5992","Materials for resale","13/06/2017"
"Wolverhampton City Council","http://opendatacommunities.org/id/metropolitan-district-council/wolverhampton","ASDA HOME SHOPPING",".03","Ernest Bold Court","5411","Provisions (Not for resale)","13/06/2017"
"Wolverhampton City Council","http://opendatacommunities.org/id/metropolitan-district-council/wolverhampton","G & M HALE LTD","45.00","Discretionary Fund","5992","Materials","13/06/2017"
"Wolverhampton City Council","http://opendatacommunities.org/id/metropolitan-district-council/wolverhampton","G & M HALE LTD","65.80","Discretionary Fund","5992","Materials","13/06/2017"
"Wolverhampton City Council","http://opendatacommunities.org/id/metropolitan-district-council/wolverhampton","PAYPAL  SHOP4YOURSI","79.42","Parks/Open Spaces - R & M","8999","Equipment - Purchase","13/06/2017"
"Wolverhampton City Council","http://opendatacommunities.org/id/metropolitan-district-council/wolverhampton","VALUE PRODUCTS LTD","28.50","Parks/Open Spaces - R & M","5999","Equipment - Purchase","13/06/2017"
"Wolverhampton City Council","http://opendatacommunities.org/id/metropolitan-district-council/wolverhampton","Trainline","44.37","Adoption and Residence Team & Allowances","4112","Public Transport","13/06/2017"
"Wolverhampton City Council","http://opendatacommunities.org/id/metropolitan-district-council/wolverhampton","FLYTE SO FANCYG-KITS.C","37.26","Northicote Farm","5995","Materials","13/06/2017"
"Wolverhampton City Council","http://opendatacommunities.org/id/metropolitan-district-council/wolverhampton","SAINSBURYS SACAT (2340","35.83","Mayoral Expenses","5411","Hospitality","12/06/2017"
"Wolverhampton City Council","http://opendatacommunities.org/id/metropolitan-district-council/wolverhampton","VWO.com","48.02","City Direct","7399","Equipment - Purchase","12/06/2017"
"Wolverhampton City Council","http://opendatacommunities.org/id/metropolitan-district-council/wolverhampton","WWWBHANGRABLAZECOM","20.00","WV Active Business Support","7997","Services - Professional Fees","12/06/2017"
"Wolverhampton City Council","http://opendatacommunities.org/id/metropolitan-district-council/wolverhampton","Amazon UK Marketplace","16.99","Central Baths","5942","Equipment - Purchase","12/06/2017"
"Wolverhampton City Council","http://opendatacommunities.org/id/metropolitan-district-council/wolverhampton","UK SAFETY MANAGEME","262.79","Upper Pendeford Farm Childrens Home","5065","Equipment - R & M","12/06/2017"
"Wolverhampton City Council","http://opendatacommunities.org/id/metropolitan-district-council/wolverhampton","E01510300000000","50.00","Emergency Duty Team","6011","Financial Assistance In Exceptional Circ","12/06/2017"
"Wolverhampton City Council","http://opendatacommunities.org/id/metropolitan-district-council/wolverhampton","WWW.SHOP.CARERSWEEK.OR","37.80","Carers Support","8299","Publications","12/06/2017"
"Wolverhampton City Council","http://opendatacommunities.org/id/metropolitan-district-council/wolverhampton","WIX.COM","46.57","Technical Support","5968","Subscriptions","12/06/2017"
"Wolverhampton City Council","http://opendatacommunities.org/id/metropolitan-district-council/wolverhampton","BRTMKT DBA FastSpring","5.05","Technical Support","5818","Subscriptions","12/06/2017"
"Wolverhampton City Council","http://opendatacommunities.org/id/metropolitan-district-council/wolverhampton","Wix.com","46.57","Technical Support","5817","Computing - Purchase of Software","12/06/2017"
"Wolverhampton City Council","http://opendatacommunities.org/id/metropolitan-district-council/wolverhampton","MAPLIN WOLVERHAMPT WV2","39.98","Technical Support","4812","Comms - Mobile Telephones","12/06/2017"
"Wolverhampton City Council","http://opendatacommunities.org/id/metropolitan-district-council/wolverhampton","WWW.ICO.GOV.UK","35.00","Members Expenses","9399","Services - Fees and Charges","12/06/2017"
"Wolverhampton City Council","http://opendatacommunities.org/id/metropolitan-district-council/wolverhampton","WWW.ICO.GOV.UK","35.00","Members Expenses","9399","Services - Fees and Charges","12/06/2017"
"Wolverhampton City Council","http://opendatacommunities.org/id/metropolitan-district-council/wolverhampton","WWW.ICO.GOV.UK","35.00","Members Expenses","9399","Services - Fees and Charges","12/06/2017"
"Wolverhampton City Council","http://opendatacommunities.org/id/metropolitan-district-council/wolverhampton","WEX PHOTOGRAPHIC","434.99","Communications & Marketing - General","5946","Equipment - Purchase","12/06/2017"
"Wolverhampton City Council","http://opendatacommunities.org/id/metropolitan-district-council/wolverhampton","Amazon UK Marketplace","10.00","Communications & Marketing - General","5942","Equipment - Purchase","12/06/2017"
"Wolverhampton City Council","http://opendatacommunities.org/id/metropolitan-district-council/wolverhampton","ASDA STORES 4452","6.65","Headstart Phase 3","5411","Cleaning Supplies and Materials","12/06/2017"
"Wolverhampton City Council","http://opendatacommunities.org/id/metropolitan-district-council/wolverhampton","POST OFFICE COUNTER","8.55","Headstart Phase 3","9402","Comms - Postage","12/06/2017"
"Wolverhampton City Council","http://opendatacommunities.org/id/metropolitan-district-council/wolverhampton","SHELL & WAITROSE","4.17","Mayoral Expenses","5541","Cleaning Supplies and Materials","12/06/2017"
"Wolverhampton City Council","http://opendatacommunities.org/id/metropolitan-district-council/wolverhampton","ASDA SUPERSTORE","157.40","Mayoral Expenses","5411","Hospitality","12/06/2017"
"Wolverhampton City Council","http://opendatacommunities.org/id/metropolitan-district-council/wolverhampton","ASDA HOME SHOPPING","-.95","Upper Pendeford Farm Childrens Home","5411","Provisions (Not for resale)","12/06/2017"
"Wolverhampton City Council","http://opendatacommunities.org/id/metropolitan-district-council/wolverhampton","ASDA HOME SHOPPING","335.65","Upper Pendeford Farm Childrens Home","5411","Provisions (Not for resale)","12/06/2017"
"Wolverhampton City Council","http://opendatacommunities.org/id/metropolitan-district-council/wolverhampton","SPORTSDIRECT 383","28.33","Language Studies Delivery Area","5941","Equipment - Purchase","12/06/2017"
"Wolverhampton City Council","http://opendatacommunities.org/id/metropolitan-district-council/wolverhampton","Amazon UK Marketplace","13.66","Central Costs","5942","Books","12/06/2017"
"Wolverhampton City Council","http://opendatacommunities.org/id/metropolitan-district-council/wolverhampton","JAMES LISTER & SON","51.05","Telecare","8911","Cleaning Supplies and Materials","12/06/2017"
"Wolverhampton City Council","http://opendatacommunities.org/id/metropolitan-district-council/wolverhampton","Virgin Trains","32.90","LAC Team","4112","Public Transport","12/06/2017"
"Wolverhampton City Council","http://opendatacommunities.org/id/metropolitan-district-council/wolverhampton","TESCO STORES 5194","-5.34","Towers Outdoor Education Centre","5411","Provisions (Not for resale)","12/06/2017"
"Wolverhampton City Council","http://opendatacommunities.org/id/metropolitan-district-council/wolverhampton","WWW.ICO.GOV.UK","35.00","Members Expenses","9399","Services - Fees and Charges","12/06/2017"
"Wolverhampton City Council","http://opendatacommunities.org/id/metropolitan-district-council/wolverhampton","WWW.ICO.GOV.UK","35.00","Members Expenses","9399","Services - Fees and Charges","12/06/2017"
"Wolverhampton City Council","http://opendatacommunities.org/id/metropolitan-district-council/wolverhampton","WWW.ICO.GOV.UK","35.00","Members Expenses","9399","Services - Fees and Charges","12/06/2017"
"Wolverhampton City Council","http://opendatacommunities.org/id/metropolitan-district-council/wolverhampton","WWW.ICO.GOV.UK","35.00","Members Expenses","9399","Services - Fees and Charges","12/06/2017"
"Wolverhampton City Council","http://opendatacommunities.org/id/metropolitan-district-council/wolverhampton","NATWEST BANK","200.00","Democratic Support","6011","Public Transport","12/06/2017"
"Wolverhampton City Council","http://opendatacommunities.org/id/metropolitan-district-council/wolverhampton","S & B WASTE","169.50","Central Costs","4900","Services - Supplies & Services to users","12/06/2017"
"Wolverhampton City Council","http://opendatacommunities.org/id/metropolitan-district-council/wolverhampton","S & B WASTE","169.50","Central Costs","4900","Services - Supplies & Services to users","12/06/2017"
"Wolverhampton City Council","http://opendatacommunities.org/id/metropolitan-district-council/wolverhampton","GTG TRAINING LTD","21.60","Civic Halls Non Direct Management A/C","5521","Training Expenses","12/06/2017"
"Wolverhampton City Council","http://opendatacommunities.org/id/metropolitan-district-council/wolverhampton","PURE360","448.00","Audience Development","7372","Marketing \ Non-staff advertising","12/06/2017"
"Wolverhampton City Council","http://opendatacommunities.org/id/metropolitan-district-council/wolverhampton","THE COAL AUTHORITY","33.00","Strategic Asset Management Team","9399","Services - Fees and Charges","12/06/2017"
"Wolverhampton City Council","http://opendatacommunities.org/id/metropolitan-district-council/wolverhampton","WWW.DOMINOS.CO.UK","45.99","CIN/CP Social Work Unit - Area 7","5812","Educ Trips, Holidays, Outings, Activity","12/06/2017"
"Wolverhampton City Council","http://opendatacommunities.org/id/metropolitan-district-council/wolverhampton","GRO HM PASSPORT OFFICE","23.40","Legal Services","9399","Services - Fees and Charges","12/06/2017"
"Wolverhampton City Council","http://opendatacommunities.org/id/metropolitan-district-council/wolverhampton","AMAZON.CO.UK","4.97","Strategic ICTS (ICT Serv Budget)","5999","Equipment - Purchase","09/06/2017"
"Wolverhampton City Council","http://opendatacommunities.org/id/metropolitan-district-council/wolverhampton","Amazon EU","9.38","Strategic ICTS (ICT Serv Budget)","5969","Equipment - Purchase","09/06/2017"
"Wolverhampton City Council","http://opendatacommunities.org/id/metropolitan-district-council/wolverhampton","AMAZON.CO.UK","3.38","Strategic ICTS (ICT Serv Budget)","5999","Equipment - Purchase","09/06/2017"
"Wolverhampton City Council","http://opendatacommunities.org/id/metropolitan-district-council/wolverhampton","Amazon UK Marketplace","36.87","Strategic ICTS (ICT Serv Budget)","5942","Computing - Purchase of Hardware","09/06/2017"
"Wolverhampton City Council","http://opendatacommunities.org/id/metropolitan-district-council/wolverhampton","Virgin Trains","100.40","LAC Team","4112","Client Transport","09/06/2017"
"Wolverhampton City Council","http://opendatacommunities.org/id/metropolitan-district-council/wolverhampton","POUNDLAND LTD 1463","8.37","Old Hall Street Main","5310","Equipment - Purchase","09/06/2017"
"Wolverhampton City Council","http://opendatacommunities.org/id/metropolitan-district-council/wolverhampton","WWW.COFFEESUPPLIESDIRE","33.70","Archives","5331","Materials for resale","09/06/2017"
"Wolverhampton City Council","http://opendatacommunities.org/id/metropolitan-district-council/wolverhampton","YOUNG`S SHOE REPAIRS L","20.65","Wolverhampton Indoor and Open Market","7251","Fixtures and Fittings - R&M","09/06/2017"
"Wolverhampton City Council","http://opendatacommunities.org/id/metropolitan-district-council/wolverhampton","SP  FINESOLUTIONS","51.15","Craftplay","5734","Computing - Purchase of Software","09/06/2017"
"Wolverhampton City Council","http://opendatacommunities.org/id/metropolitan-district-council/wolverhampton","TESCO STORES 5194","39.78","Towers Outdoor Education Centre","5411","Provisions (Not for resale)","09/06/2017"
"Wolverhampton City Council","http://opendatacommunities.org/id/metropolitan-district-council/wolverhampton","BEACON CLIMBING CE","48.33","Towers Outdoor Education Centre","7997","Equipment - Purchase","09/06/2017"
"Wolverhampton City Council","http://opendatacommunities.org/id/metropolitan-district-council/wolverhampton","MAPLIN WOLVERHAMPT WV2","203.20","Technical Support","4812","Comms - Mobile Telephones","09/06/2017"
"Wolverhampton City Council","http://opendatacommunities.org/id/metropolitan-district-council/wolverhampton","E09009100000000","50.00","EIP Locality 3","6011","Financial Assistance In Exceptional Circ","09/06/2017"
"Wolverhampton City Council","http://opendatacommunities.org/id/metropolitan-district-council/wolverhampton","PAYPAL  EVENTSINDUS","25.00","Environmental Health - Pub Prot - Gen","8999","Equipment - Purchase","09/06/2017"
"Wolverhampton City Council","http://opendatacommunities.org/id/metropolitan-district-council/wolverhampton","GO CARZ","6.82","Legal Services","4121","Client Transport","09/06/2017"
"Wolverhampton City Council","http://opendatacommunities.org/id/metropolitan-district-council/wolverhampton","REGISTRARS OFFICE","30.00","Legal Services","8299","Training Expenses","09/06/2017"
"Wolverhampton City Council","http://opendatacommunities.org/id/metropolitan-district-council/wolverhampton","AMAZON.CO.UK","5.94","Fostering Team & Allowances","5999","Equipment - Purchase","09/06/2017"
"Wolverhampton City Council","http://opendatacommunities.org/id/metropolitan-district-council/wolverhampton","ARGOS RETAIL GROUP","31.62","EIP Locality 3","5310","Medical Fees","09/06/2017"
"Wolverhampton City Council","http://opendatacommunities.org/id/metropolitan-district-council/wolverhampton","COTSWOLD OUTDOOR","24.00","Towers Outdoor Education Centre","5999","Equipment - Purchase","09/06/2017"
"Wolverhampton City Council","http://opendatacommunities.org/id/metropolitan-district-council/wolverhampton","NOTEMACHINE","250.00","CIN/CP Social Work Unit - Area 6","6011","Financial Assistance In Exceptional Circ","09/06/2017"
"Wolverhampton City Council","http://opendatacommunities.org/id/metropolitan-district-council/wolverhampton","M6 TOLL","5.50","Michael Lyons","4784","Car Allowances","09/06/2017"
"Wolverhampton City Council","http://opendatacommunities.org/id/metropolitan-district-council/wolverhampton","ESSENTIALPHOTO.CO.","328.31","Communications & Marketing - General","5946","Equipment - Purchase","09/06/2017"
"Wolverhampton City Council","http://opendatacommunities.org/id/metropolitan-district-council/wolverhampton","BLOOMS MENSWEAR","49.97","Mayoral Expenses","5611","Equipment - Purchase","09/06/2017"
"Wolverhampton City Council","http://opendatacommunities.org/id/metropolitan-district-council/wolverhampton","BEATTIES","3.71","Mayoral Expenses","5311","Materials","09/06/2017"
"Wolverhampton City Council","http://opendatacommunities.org/id/metropolitan-district-council/wolverhampton","CREATIVE FRAMING","40.00","Mayoral Expenses","5971","Materials","09/06/2017"
"Wolverhampton City Council","http://opendatacommunities.org/id/metropolitan-district-council/wolverhampton","WOLVERHAMPTON","10.70","Business Engagement","5811","Catering","09/06/2017"
"Wolverhampton City Council","http://opendatacommunities.org/id/metropolitan-district-council/wolverhampton","34SP.com Ltd","7.50","Early Years & Universal Service","4816","Computing - Purchase of Software","09/06/2017"
"Wolverhampton City Council","http://opendatacommunities.org/id/metropolitan-district-council/wolverhampton","RINBOW","45.62","Headstart - Young People Engagement","5943","Equipment - Purchase","08/06/2017"
"Wolverhampton City Council","http://opendatacommunities.org/id/metropolitan-district-council/wolverhampton","RINBOW","72.62","Headstart Phase 3","5943","Equipment - Purchase","08/06/2017"
"Wolverhampton City Council","http://opendatacommunities.org/id/metropolitan-district-council/wolverhampton","Trainline","12.49","AES Staff Development","4112","Public Transport","08/06/2017"
"Wolverhampton City Council","http://opendatacommunities.org/id/metropolitan-district-council/wolverhampton","FACEBK E4RBRB6C22",".48","Admin & Support","7311","Marketing \ Non-staff advertising","08/06/2017"
"Wolverhampton City Council","http://opendatacommunities.org/id/metropolitan-district-council/wolverhampton","FACEBK D4RBRB6C22","299.52","Admin & Support","7311","Marketing \ Non-staff advertising","08/06/2017"
"Wolverhampton City Council","http://opendatacommunities.org/id/metropolitan-district-council/wolverhampton","Trainline","81.09","Youth Offending Team","4112","Public Transport","08/06/2017"
"Wolverhampton City Council","http://opendatacommunities.org/id/metropolitan-district-council/wolverhampton","FACULTY OF PUBLIC HEAL","275.00","Health Protection & NHS Facing","8220","Training Expenses","08/06/2017"
"Wolverhampton City Council","http://opendatacommunities.org/id/metropolitan-district-council/wolverhampton","Amazon UK Marketplace","30.89","Strategic ICTS (ICT Serv Budget)","5942","Equipment - Purchase","08/06/2017"
"Wolverhampton City Council","http://opendatacommunities.org/id/metropolitan-district-council/wolverhampton","Amazon UK Marketplace","44.97","Strategic ICTS (ICT Serv Budget)","5942","Computing - Purchase of Hardware","08/06/2017"
"Wolverhampton City Council","http://opendatacommunities.org/id/metropolitan-district-council/wolverhampton","ATHENA CRAFTS LTD","772.76","Strategic ICTS (ICT Serv Budget)","5131","Equipment - Purchase","08/06/2017"
"Wolverhampton City Council","http://opendatacommunities.org/id/metropolitan-district-council/wolverhampton","SPORTSDIRECT 231","58.28","Aldersley Leisure Village","5941","Equipment - Purchase","08/06/2017"
"Wolverhampton City Council","http://opendatacommunities.org/id/metropolitan-district-council/wolverhampton","Amazon UK Marketplace","147.21","Central Baths","5942","Equipment - Purchase","08/06/2017"
"Wolverhampton City Council","http://opendatacommunities.org/id/metropolitan-district-council/wolverhampton","STK SHUTTERSTOCK.COM","-148.80","Service Wide","7333","Marketing \ Non-staff advertising","08/06/2017"
"Wolverhampton City Council","http://opendatacommunities.org/id/metropolitan-district-council/wolverhampton","ASDA SUPERSTORE","22.50","CIN/CP Social Work Unit - Area 5","5411","Provisions (Not for resale)","08/06/2017"
"Wolverhampton City Council","http://opendatacommunities.org/id/metropolitan-district-council/wolverhampton","Trainline","396.27","Adoption and Residence Team & Allowances","4112","Public Transport","08/06/2017"
"Wolverhampton City Council","http://opendatacommunities.org/id/metropolitan-district-council/wolverhampton","NCE COMPUTER GROUP","555.00","Customer Services","7372","Computing - Purchase of Software","08/06/2017"
"Wolverhampton City Council","http://opendatacommunities.org/id/metropolitan-district-council/wolverhampton","TFM FARM & COUNTRY SUP","34.95","Northicote Farm","5399","Materials","08/06/2017"
"Wolverhampton City Council","http://opendatacommunities.org/id/metropolitan-district-council/wolverhampton","PREMIER INN","103.00","Hostels / Outreach","3811","Services - Supplies & Services to users","08/06/2017"
"Wolverhampton City Council","http://opendatacommunities.org/id/metropolitan-district-council/wolverhampton","PREMIER INN","443.00","Hostels / Outreach","3811","Services - Supplies & Services to users","08/06/2017"
"Wolverhampton City Council","http://opendatacommunities.org/id/metropolitan-district-council/wolverhampton","SAINSBURYS","70.00","EIP Locality 1","6011","Financial Assistance In Exceptional Circ","08/06/2017"
"Wolverhampton City Council","http://opendatacommunities.org/id/metropolitan-district-council/wolverhampton","Amazon UK Marketplace","23.29","Specialist Support Service - North","5942","Stationery","08/06/2017"
"Wolverhampton City Council","http://opendatacommunities.org/id/metropolitan-district-council/wolverhampton","VDU01 HOTEL","10.00","Tenancy Sustainment","7011","Services - Supplies & Services to users","08/06/2017"
"Wolverhampton City Council","http://opendatacommunities.org/id/metropolitan-district-council/wolverhampton","VDU01 HOTEL","15.00","Tenancy Sustainment","7011","Services - Supplies & Services to users","08/06/2017"
"Wolverhampton City Council","http://opendatacommunities.org/id/metropolitan-district-council/wolverhampton","VDU01 HOTEL","150.00","Tenancy Sustainment","7011","Services - Supplies & Services to users","08/06/2017"
"Wolverhampton City Council","http://opendatacommunities.org/id/metropolitan-district-council/wolverhampton","CITIZENCARD","30.00","LAC Transitions Team","9399","Services - Fees and Charges","08/06/2017"
"Wolverhampton City Council","http://opendatacommunities.org/id/metropolitan-district-council/wolverhampton","TESCO STORES 5194","-3.56","Towers Outdoor Education Centre","5411","Provisions (Not for resale)","08/06/2017"
"Wolverhampton City Council","http://opendatacommunities.org/id/metropolitan-district-council/wolverhampton","AMAZON.CO.UK","5.80","Global Budgets","5999","Books","08/06/2017"
"Wolverhampton City Council","http://opendatacommunities.org/id/metropolitan-district-council/wolverhampton","Amazon UK Marketplace","2.81","Global Budgets","5942","Books","08/06/2017"
"Wolverhampton City Council","http://opendatacommunities.org/id/metropolitan-district-council/wolverhampton","Amazon UK Marketplace","2.81","Global Budgets","5942","Books","08/06/2017"
"Wolverhampton City Council","http://opendatacommunities.org/id/metropolitan-district-council/wolverhampton","Amazon UK Marketplace","4.53","Global Budgets","5942","Books","08/06/2017"
"Wolverhampton City Council","http://opendatacommunities.org/id/metropolitan-district-council/wolverhampton","LIDL UK","49.99","LAC Team","5411","Financial Assistance In Exceptional Circ","08/06/2017"
"Wolverhampton City Council","http://opendatacommunities.org/id/metropolitan-district-council/wolverhampton","POST OFFICE COUNTER","55.75","LAC Team","9402","Financial Assistance In Exceptional Circ","08/06/2017"
"Wolverhampton City Council","http://opendatacommunities.org/id/metropolitan-district-council/wolverhampton","WWW.ICO.GOV.UK","35.00","Members Expenses","9399","Services - Fees and Charges","08/06/2017"
"Wolverhampton City Council","http://opendatacommunities.org/id/metropolitan-district-council/wolverhampton","SJASUPLIES","272.52","Art Gallery","8398","First Aid Requisites","08/06/2017"
"Wolverhampton City Council","http://opendatacommunities.org/id/metropolitan-district-council/wolverhampton","PAYPAL  THEROTA","172.89","Civic Halls Non Direct Management A/C","5735","Computing - Purchase of Software","08/06/2017"
"Wolverhampton City Council","http://opendatacommunities.org/id/metropolitan-district-council/wolverhampton","Cross Country Trains","102.00","Audience Development","4112","Public Transport","08/06/2017"
"Wolverhampton City Council","http://opendatacommunities.org/id/metropolitan-district-council/wolverhampton","EE LIMITED R501","10.00","School Crossing Patrol","4812","Comms - Mobile Telephones","08/06/2017"
"Wolverhampton City Council","http://opendatacommunities.org/id/metropolitan-district-council/wolverhampton","EB  CONSEQUENCES OF DO","67.00","Member Training","7399","Training Expenses","08/06/2017"
"Wolverhampton City Council","http://opendatacommunities.org/id/metropolitan-district-council/wolverhampton","EBUYER (UK) LTD","390.72","Macmillan Welfare Rights","5722","Stationery","08/06/2017"
"Wolverhampton City Council","http://opendatacommunities.org/id/metropolitan-district-council/wolverhampton","Virgin Trains","9.00","Fostering Team & Allowances","4112","Public Transport","08/06/2017"
"Wolverhampton City Council","http://opendatacommunities.org/id/metropolitan-district-council/wolverhampton","ASDA SUPERSTORE","14.61","CIN/CP Social Work Unit - Area 5","5411","Provisions (Not for resale)","08/06/2017"
"Wolverhampton City Council","http://opendatacommunities.org/id/metropolitan-district-council/wolverhampton","AMAZON.CO.UK","20.28","Headstart Phase 3","5999","Catering","07/06/2017"
"Wolverhampton City Council","http://opendatacommunities.org/id/metropolitan-district-council/wolverhampton","BRITISHFOODSHOP","60.97","Headstart Phase 3","5499","Catering","07/06/2017"
"Wolverhampton City Council","http://opendatacommunities.org/id/metropolitan-district-council/wolverhampton","E00856800000000","10.00","Headstart - Young People Engagement","6011","Financial Assistance In Exceptional Circ","07/06/2017"
"Wolverhampton City Council","http://opendatacommunities.org/id/metropolitan-district-council/wolverhampton","SCREWFIX DIRECT","9.57","Caretakers Community Centre","5211","Materials","07/06/2017"
"Wolverhampton City Council","http://opendatacommunities.org/id/metropolitan-district-council/wolverhampton","SCREWFIX DIRECT","19.92","Statutory Services (10RM)","5211","Materials","07/06/2017"
"Wolverhampton City Council","http://opendatacommunities.org/id/metropolitan-district-council/wolverhampton","Amazon UK Marketplace","197.67","Strategic ICTS (ICT Serv Budget)","5942","Computing - Purchase of Hardware","07/06/2017"
"Wolverhampton City Council","http://opendatacommunities.org/id/metropolitan-district-council/wolverhampton","Amazon UK Marketplace","101.83","Strategic ICTS (ICT Serv Budget)","5942","Computing - Purchase of Hardware","07/06/2017"
"Wolverhampton City Council","http://opendatacommunities.org/id/metropolitan-district-council/wolverhampton","Amazon UK Marketplace","36.65","Strategic ICTS (ICT Serv Budget)","5942","Computing - Purchase of Hardware","07/06/2017"
"Wolverhampton City Council","http://opendatacommunities.org/id/metropolitan-district-council/wolverhampton","Virgin Trains","88.50","Strategic Financial Services","4112","Public Transport","07/06/2017"
"Wolverhampton City Council","http://opendatacommunities.org/id/metropolitan-district-council/wolverhampton","Virgin Trains","66.30","Audit Services","4112","Public Transport","07/06/2017"
"Wolverhampton City Council","http://opendatacommunities.org/id/metropolitan-district-council/wolverhampton","CONCENTRIC LETTINGS LT","15.00","CIN/CP Social Work Unit - Area 3","8999","Services - Professional Fees","07/06/2017"
"Wolverhampton City Council","http://opendatacommunities.org/id/metropolitan-district-council/wolverhampton","CONCENTRIC LETTINGS LT","500.00","CIN/CP Social Work Unit - Area 3","8999","Services - Professional Fees","07/06/2017"
"Wolverhampton City Council","http://opendatacommunities.org/id/metropolitan-district-council/wolverhampton","WILKO RETAIL LIMIT","22.00","Old Hall Street Main","5722","Equipment - R & M","07/06/2017"
"Wolverhampton City Council","http://opendatacommunities.org/id/metropolitan-district-council/wolverhampton","S & B WASTE","169.50","Central Costs","4900","Electricity","07/06/2017"
"Wolverhampton City Council","http://opendatacommunities.org/id/metropolitan-district-council/wolverhampton","PREMIER INN","138.32","Headstart Phase 3","3811","Accommodation Costs","07/06/2017"
"Wolverhampton City Council","http://opendatacommunities.org/id/metropolitan-district-council/wolverhampton","LOYD QUEEN SQUARE","40.00","Ernest Bold Court","6011","Financial Assistance In Exceptional Circ","07/06/2017"
"Wolverhampton City Council","http://opendatacommunities.org/id/metropolitan-district-council/wolverhampton","EB  UNDERSTANDING CONT","86.14","EIP Locality 1","7399","Training Expenses","07/06/2017"
"Wolverhampton City Council","http://opendatacommunities.org/id/metropolitan-district-council/wolverhampton","WEST MID TRAVEL","446.85","Community Enablement","4131","Public Transport","07/06/2017"
"Wolverhampton City Council","http://opendatacommunities.org/id/metropolitan-district-council/wolverhampton","TESCO STORES 5194","333.94","Towers Outdoor Education Centre","5411","Provisions (Not for resale)","07/06/2017"
"Wolverhampton City Council","http://opendatacommunities.org/id/metropolitan-district-council/wolverhampton","Amazon UK Marketplace","34.87","Towers Outdoor Education Centre","5942","Books","07/06/2017"
"Wolverhampton City Council","http://opendatacommunities.org/id/metropolitan-district-council/wolverhampton","WWW.HFE-SIGNS.CO.UK","113.20","Headstart - Young People Engagement","2741","Publications","07/06/2017"
"Wolverhampton City Council","http://opendatacommunities.org/id/metropolitan-district-council/wolverhampton","HIRE EDUCATION LIMITED","185.00","Education Library Service","8299","Books","07/06/2017"
"Wolverhampton City Council","http://opendatacommunities.org/id/metropolitan-district-council/wolverhampton","Amazon UK Marketplace","9.42","Global Budgets","5942","Books","07/06/2017"
"Wolverhampton City Council","http://opendatacommunities.org/id/metropolitan-district-council/wolverhampton","Amazon UK Marketplace","3.77","Global Budgets","5942","Books","07/06/2017"
"Wolverhampton City Council","http://opendatacommunities.org/id/metropolitan-district-council/wolverhampton","Amazon UK Marketplace","3.37","Global Budgets","5942","Books","07/06/2017"
"Wolverhampton City Council","http://opendatacommunities.org/id/metropolitan-district-council/wolverhampton","WWW.ARGOS.CO.UK","43.94","EIP Locality 8","5310","Equipment - Purchase","07/06/2017"
"Wolverhampton City Council","http://opendatacommunities.org/id/metropolitan-district-council/wolverhampton","S & B WASTE","169.50","Central Costs","4900","Electricity","07/06/2017"
"Wolverhampton City Council","http://opendatacommunities.org/id/metropolitan-district-council/wolverhampton","AMAZON.CO.UK","14.74","Inclusion Support","5999","Equipment - Purchase","07/06/2017"
"Wolverhampton City Council","http://opendatacommunities.org/id/metropolitan-district-council/wolverhampton","Trainline","57.73","Inclusion Support","4112","Public Transport","07/06/2017"
"Wolverhampton City Council","http://opendatacommunities.org/id/metropolitan-district-council/wolverhampton","Amazon UK Marketplace","1.18","Inclusion Support","5942","Books","07/06/2017"
"Wolverhampton City Council","http://opendatacommunities.org/id/metropolitan-district-council/wolverhampton","Trainline","193.29","Adult Services - West","4112","Public Transport","07/06/2017"
"Wolverhampton City Council","http://opendatacommunities.org/id/metropolitan-district-council/wolverhampton","EE & T-MOBILE","125.38","Civic Halls Non Direct Management A/C","4814","Comms - Telephone Call charges","07/06/2017"
"Wolverhampton City Council","http://opendatacommunities.org/id/metropolitan-district-council/wolverhampton","SCREWFIX DIRECT","34.99","Car Parks Operational Staff","5211","Clothing / Uniforms","07/06/2017"
"Wolverhampton City Council","http://opendatacommunities.org/id/metropolitan-district-council/wolverhampton","GRO HM PASSPORT OFFICE","23.40","Legal Services","9399","Services - Fees and Charges","07/06/2017"
"Wolverhampton City Council","http://opendatacommunities.org/id/metropolitan-district-council/wolverhampton","AMAZON.CO.UK","144.95","School Improvement","5999","Equipment - Purchase","07/06/2017"
"Wolverhampton City Council","http://opendatacommunities.org/id/metropolitan-district-council/wolverhampton","HIGHFIELD HOUSE HO","385.00","CIN/CP Social Work Unit - Area 3","7011","No Recourse to Public Funds","07/06/2017"
"Wolverhampton City Council","http://opendatacommunities.org/id/metropolitan-district-council/wolverhampton","Virgin Trains","112.00","Licensing - General","4112","Public Transport","07/06/2017"
"Wolverhampton City Council","http://opendatacommunities.org/id/metropolitan-district-council/wolverhampton","TICKET OFFICE-INTE","-30.00","CIN/CP Social Work Unit - Area 5","7997","Educ Trips, Holidays, Outings, Activity","07/06/2017"
"Wolverhampton City Council","http://opendatacommunities.org/id/metropolitan-district-council/wolverhampton","HOLIDAY INN EXPRES","71.20","Adoption and Residence Team & Allowances","7011","Accommodation Costs","07/06/2017"
"Wolverhampton City Council","http://opendatacommunities.org/id/metropolitan-district-council/wolverhampton","Amazon UK Marketplace","16.75","Adoption and Residence Team & Allowances","5942","Stationery","07/06/2017"
"Wolverhampton City Council","http://opendatacommunities.org/id/metropolitan-district-council/wolverhampton","LION PICTURE FRAMING S","165.55","Technician","5999","Equipment - Purchase","07/06/2017"
"Wolverhampton City Council","http://opendatacommunities.org/id/metropolitan-district-council/wolverhampton","CHALLENGETROPHIES CO U","127.23","Headstart Phase 3","5999","Educ Trips, Holidays, Outings, Activity","06/06/2017"
"Wolverhampton City Council","http://opendatacommunities.org/id/metropolitan-district-council/wolverhampton","JAYCEE TROPHIES","23.53","Headstart Phase 3","5945","Educ Trips, Holidays, Outings, Activity","06/06/2017"
"Wolverhampton City Council","http://opendatacommunities.org/id/metropolitan-district-council/wolverhampton","FACEBK  R9RGMCAHC2","12.44","Headstart Phase 3","7311","Marketing \ Non-staff advertising","06/06/2017"
"Wolverhampton City Council","http://opendatacommunities.org/id/metropolitan-district-council/wolverhampton","FACEBK  Q9RGMCAHC2","87.39","Headstart Phase 3","7311","Marketing \ Non-staff advertising","06/06/2017"
"Wolverhampton City Council","http://opendatacommunities.org/id/metropolitan-district-council/wolverhampton","SAINSBURYS SACAT (2340","16.73","Mayoral Expenses","5411","Hospitality","06/06/2017"
"Wolverhampton City Council","http://opendatacommunities.org/id/metropolitan-district-council/wolverhampton","ARGOS RETAIL GROUP","138.44","EIP Locality 8","5310","Grant Payments","06/06/2017"
"Wolverhampton City Council","http://opendatacommunities.org/id/metropolitan-district-council/wolverhampton","CHILLINGTON SELF STORA","89.76","LAC Transitions Team","4214","Client Allowances","06/06/2017"
"Wolverhampton City Council","http://opendatacommunities.org/id/metropolitan-district-council/wolverhampton","Virgin Trains","194.00","Risk Management & Insurance","4112","Public Transport","06/06/2017"
"Wolverhampton City Council","http://opendatacommunities.org/id/metropolitan-district-council/wolverhampton","VALUE PRODUCTS LTD","44.10","Upper Pendeford Farm Childrens Home","5999","Equipment - Purchase","06/06/2017"
"Wolverhampton City Council","http://opendatacommunities.org/id/metropolitan-district-council/wolverhampton","W M MORRISONS.COM","125.33","Discretionary Fund","5411","Materials","06/06/2017"
"Wolverhampton City Council","http://opendatacommunities.org/id/metropolitan-district-council/wolverhampton","Trainline","90.73","Headstart Phase 3","4112","Public Transport","06/06/2017"
"Wolverhampton City Council","http://opendatacommunities.org/id/metropolitan-district-council/wolverhampton","UOR EPAYMENTS GATEWAY","83.33","Headstart Phase 3","8220","Conference Expenses","06/06/2017"
"Wolverhampton City Council","http://opendatacommunities.org/id/metropolitan-district-council/wolverhampton","UOR EPAYMENTS GATEWAY","83.33","Headstart Phase 3","8220","Conference Expenses","06/06/2017"
"Wolverhampton City Council","http://opendatacommunities.org/id/metropolitan-district-council/wolverhampton","NATWEST BANK","30.00","Ernest Bold Court","6011","Financial Assistance In Exceptional Circ","06/06/2017"
"Wolverhampton City Council","http://opendatacommunities.org/id/metropolitan-district-council/wolverhampton","ARGOS RETAIL GROUP","24.99","EIP Locality 1","5310","Equipment - Purchase","06/06/2017"
"Wolverhampton City Council","http://opendatacommunities.org/id/metropolitan-district-council/wolverhampton","WWW.DERBY.GOV.UK","402.11","Private Sector Housing","9399","Training Expenses","06/06/2017"
"Wolverhampton City Council","http://opendatacommunities.org/id/metropolitan-district-council/wolverhampton","VDU01 HOTEL","178.00","Tenancy Sustainment","7011","Services - Supplies & Services to users","06/06/2017"
"Wolverhampton City Council","http://opendatacommunities.org/id/metropolitan-district-council/wolverhampton","GIBSON'S","66.62","Towers Outdoor Education Centre","5999","Equipment - Purchase","06/06/2017"
"Wolverhampton City Council","http://opendatacommunities.org/id/metropolitan-district-council/wolverhampton","CURRYS ONLINE","703.50","Technical Support","5732","Equipment - Purchase","06/06/2017"
"Wolverhampton City Council","http://opendatacommunities.org/id/metropolitan-district-council/wolverhampton","E09009100000000","70.00","EIP Locality 3","6011","Financial Assistance In Exceptional Circ","06/06/2017"
"Wolverhampton City Council","http://opendatacommunities.org/id/metropolitan-district-council/wolverhampton","WAITROSE 696","6.10","EIP Locality 3","5411","Financial Assistance In Exceptional Circ","06/06/2017"
"Wolverhampton City Council","http://opendatacommunities.org/id/metropolitan-district-council/wolverhampton","Amazon EU","41.99","Upper Pendeford Farm Childrens Home","5969","Equipment - Purchase","06/06/2017"
"Wolverhampton City Council","http://opendatacommunities.org/id/metropolitan-district-council/wolverhampton","B & Q 1243","3.22","Ernest Bold Court","5211","Equipment - R & M","06/06/2017"
"Wolverhampton City Council","http://opendatacommunities.org/id/metropolitan-district-council/wolverhampton","B & Q 1243","8.62","Ernest Bold Court","5211","Equipment - R & M","06/06/2017"
"Wolverhampton City Council","http://opendatacommunities.org/id/metropolitan-district-council/wolverhampton","Trainline","56.61","Strategic Director Place","4112","Public Transport","06/06/2017"
"Wolverhampton City Council","http://opendatacommunities.org/id/metropolitan-district-council/wolverhampton","ASDA HOME SHOPPING","-.39","Ernest Bold Court","5411","Provisions (Not for resale)","06/06/2017"
"Wolverhampton City Council","http://opendatacommunities.org/id/metropolitan-district-council/wolverhampton","ASDA HOME SHOPPING","113.73","Ernest Bold Court","5411","Provisions (Not for resale)","06/06/2017"
"Wolverhampton City Council","http://opendatacommunities.org/id/metropolitan-district-council/wolverhampton","THE RANGE","8.35","Ernest Bold Court","5311","Equipment - Purchase","06/06/2017"
"Wolverhampton City Council","http://opendatacommunities.org/id/metropolitan-district-council/wolverhampton","REGISTRARS OFFICE","30.00","Legal Services","8299","Training Expenses","06/06/2017"
"Wolverhampton City Council","http://opendatacommunities.org/id/metropolitan-district-council/wolverhampton","G & M HALE (SUNDRIES)","8.40","Discretionary Fund","5992","Materials","06/06/2017"
"Wolverhampton City Council","http://opendatacommunities.org/id/metropolitan-district-council/wolverhampton","G & M HALE (SUNDRIES)","11.80","Discretionary Fund","5992","Materials","06/06/2017"
"Wolverhampton City Council","http://opendatacommunities.org/id/metropolitan-district-council/wolverhampton","G & M HALE LTD","89.20","Discretionary Fund","5992","Materials","06/06/2017"
"Wolverhampton City Council","http://opendatacommunities.org/id/metropolitan-district-council/wolverhampton","G & M HALE LTD","52.50","Creative Studies Delivery Area","5992","Materials for resale","06/06/2017"
"Wolverhampton City Council","http://opendatacommunities.org/id/metropolitan-district-council/wolverhampton","G & M HALE LTD","32.40","Discretionary Fund","5992","Materials","06/06/2017"
"Wolverhampton City Council","http://opendatacommunities.org/id/metropolitan-district-council/wolverhampton","G & M HALE LTD","163.80","Discretionary Fund","5992","Materials","06/06/2017"
"Wolverhampton City Council","http://opendatacommunities.org/id/metropolitan-district-council/wolverhampton","SCREWFIX DIRECT","109.92","Technical Material","5211","Materials","06/06/2017"
"Wolverhampton City Council","http://opendatacommunities.org/id/metropolitan-district-council/wolverhampton","LION PICTURE FRAMING S","284.12","Jane & Louise Wilson","5999","Equipment - Purchase","06/06/2017"
"Wolverhampton City Council","http://opendatacommunities.org/id/metropolitan-district-council/wolverhampton","123-REG.CO.UK","617.35","Customer Services","4816","Computing - Purchase of Software","06/06/2017"
"Wolverhampton City Council","http://opendatacommunities.org/id/metropolitan-district-council/wolverhampton","Virgin Trains","96.00","Members Expenses","4112","Public Transport","06/06/2017"
"Wolverhampton City Council","http://opendatacommunities.org/id/metropolitan-district-council/wolverhampton","APL /AbcCars","5.70","Northicote Farm","4121","Public Transport","06/06/2017"
"Wolverhampton City Council","http://opendatacommunities.org/id/metropolitan-district-council/wolverhampton","YOUNG`S SHOE REPAIRS L","26.85","Wolverhampton Indoor and Open Market","7251","Fixtures and Fittings - R&M","05/06/2017"
"Wolverhampton City Council","http://opendatacommunities.org/id/metropolitan-district-council/wolverhampton","VDU01 HOTEL","353.00","Hostels / Outreach","7011","Services - Supplies & Services to users","05/06/2017"
"Wolverhampton City Council","http://opendatacommunities.org/id/metropolitan-district-council/wolverhampton","BOOKWHEN","9.00","Craftplay","7372","Computing - Purchase of Software","05/06/2017"
"Wolverhampton City Council","http://opendatacommunities.org/id/metropolitan-district-council/wolverhampton","WWW.PARTYDELIGHTS.CO.U","77.89","Education Library Service","5947","Books","05/06/2017"
"Wolverhampton City Council","http://opendatacommunities.org/id/metropolitan-district-council/wolverhampton","WWW.SMIFFYS.COM","250.86","Education Library Service","5945","Books","05/06/2017"
"Wolverhampton City Council","http://opendatacommunities.org/id/metropolitan-district-council/wolverhampton","WWW.TTS-GROUPS.CO.UK","290.12","Education Library Service","5943","Books","05/06/2017"
"Wolverhampton City Council","http://opendatacommunities.org/id/metropolitan-district-council/wolverhampton","HUGHES","136.00","EIP Locality 3","5732","Financial Assistance In Exceptional Circ","05/06/2017"
"Wolverhampton City Council","http://opendatacommunities.org/id/metropolitan-district-council/wolverhampton","ARGOS LTD","83.32","LAC Transitions Team","5310","Client Allowances","05/06/2017"
"Wolverhampton City Council","http://opendatacommunities.org/id/metropolitan-district-council/wolverhampton","AVAST NEXWAY","89.99","Civic Halls Non Direct Management A/C","5734","Computing - Purchase of Software","05/06/2017"
"Wolverhampton City Council","http://opendatacommunities.org/id/metropolitan-district-council/wolverhampton","123 REG R/T","9.59","Civic Halls Non Direct Management A/C","5968","Subscriptions","05/06/2017"
"Wolverhampton City Council","http://opendatacommunities.org/id/metropolitan-district-council/wolverhampton","GOOGLE  SVCSAPPS_wolve","6.60","Civic Halls Non Direct Management A/C","5968","Subscriptions","05/06/2017"
"Wolverhampton City Council","http://opendatacommunities.org/id/metropolitan-district-council/wolverhampton","Amazon EU","17.99","Workforce Development","5969","Books","05/06/2017"
"Wolverhampton City Council","http://opendatacommunities.org/id/metropolitan-district-council/wolverhampton","WWW.CLT.CO.UK","120.00","Central Training","8220","Training Expenses","05/06/2017"
"Wolverhampton City Council","http://opendatacommunities.org/id/metropolitan-district-council/wolverhampton","WWW.HEALTHCARECONFEREN","328.50","Workforce Development","7399","Training Expenses","05/06/2017"
"Wolverhampton City Council","http://opendatacommunities.org/id/metropolitan-district-council/wolverhampton","AMZ Aonokoy Inc","-7.99","Legal Services","5999","Equipment - Purchase","05/06/2017"
"Wolverhampton City Council","http://opendatacommunities.org/id/metropolitan-district-council/wolverhampton","Trainline","26.62","Legal Services","4112","Public Transport","05/06/2017"
"Wolverhampton City Council","http://opendatacommunities.org/id/metropolitan-district-council/wolverhampton","GRO HM PASSPORT OFFICE","23.40","Legal Services","9399","Services - Fees and Charges","05/06/2017"
"Wolverhampton City Council","http://opendatacommunities.org/id/metropolitan-district-council/wolverhampton","ARGOS LTD","16.30","Duke Street Bungalows","5310","Equipment - Purchase","05/06/2017"
"Wolverhampton City Council","http://opendatacommunities.org/id/metropolitan-district-council/wolverhampton","NOTEMACHINE","250.00","CIN/CP Social Work Unit - Area 6","6011","Client Allowances","05/06/2017"
"Wolverhampton City Council","http://opendatacommunities.org/id/metropolitan-district-council/wolverhampton","ROYAL BK OF SCOTLAND","250.00","CIN/CP Social Work Unit - Area 6","6011","Financial Assistance In Exceptional Circ","05/06/2017"
"Wolverhampton City Council","http://opendatacommunities.org/id/metropolitan-district-council/wolverhampton","GCL760R","1,887.12","Delivery & OCE Development","7011","Accommodation Costs","05/06/2017"
"Wolverhampton City Council","http://opendatacommunities.org/id/metropolitan-district-council/wolverhampton","LION PICTURE FRAMING S","336.38","Technical Material","5999","Equipment - Purchase","05/06/2017"
"Wolverhampton City Council","http://opendatacommunities.org/id/metropolitan-district-council/wolverhampton","Virgin Trains","32.40","Planning","4112","Public Transport","05/06/2017"
"Wolverhampton City Council","http://opendatacommunities.org/id/metropolitan-district-council/wolverhampton","WESTMINSTER FORUM","95.00","LAC Education Team (LACE)","7392","Books","05/06/2017"
"Wolverhampton City Council","http://opendatacommunities.org/id/metropolitan-district-council/wolverhampton","WOLVERHAMPTON RACECOUR","84.60","Business Engagement","7011","Catering","05/06/2017"
"Wolverhampton City Council","http://opendatacommunities.org/id/metropolitan-district-council/wolverhampton","SCREWFIX WOLVERHAM","17.63","Public Conveniences","5211","Equipment - Purchase","05/06/2017"
"Wolverhampton City Council","http://opendatacommunities.org/id/metropolitan-district-council/wolverhampton","WWW.REED.CO.UK","-96.00","Strategic ICTS (ICT Serv Budget)","7361","Staff Advertising Costs","05/06/2017"
"Wolverhampton City Council","http://opendatacommunities.org/id/metropolitan-district-council/wolverhampton","MONSTER UK","265.00","Strategic ICTS (ICT Serv Budget)","7375","Staff Advertising Costs","05/06/2017"
"Wolverhampton City Council","http://opendatacommunities.org/id/metropolitan-district-council/wolverhampton","ASDA HOME SHOPPING","-6.75","Upper Pendeford Farm Childrens Home","5411","Provisions (Not for resale)","05/06/2017"
"Wolverhampton City Council","http://opendatacommunities.org/id/metropolitan-district-council/wolverhampton","ASDA HOME SHOPPING","-2.00","Upper Pendeford Farm Childrens Home","5411","Provisions (Not for resale)","05/06/2017"
"Wolverhampton City Council","http://opendatacommunities.org/id/metropolitan-district-council/wolverhampton","ASDA HOME SHOPPING","214.37","Upper Pendeford Farm Childrens Home","5411","Provisions (Not for resale)","05/06/2017"
"Wolverhampton City Council","http://opendatacommunities.org/id/metropolitan-district-council/wolverhampton","TVLICENSING.CO.UK","147.00","Upper Pendeford Farm Childrens Home","7392","Services - General Licences","05/06/2017"
"Wolverhampton City Council","http://opendatacommunities.org/id/metropolitan-district-council/wolverhampton","AMAZON UK RETAIL AMAZO","11.99","Headstart Phase 3","5999","Books","05/06/2017"
"Wolverhampton City Council","http://opendatacommunities.org/id/metropolitan-district-council/wolverhampton","HUGHES","142.50","EIP Locality 3","5732","Financial Assistance In Exceptional Circ","02/06/2017"
"Wolverhampton City Council","http://opendatacommunities.org/id/metropolitan-district-council/wolverhampton","POST OFFICE COUNTER","223.00","LAC Team","9402","Financial Assistance In Exceptional Circ","02/06/2017"
"Wolverhampton City Council","http://opendatacommunities.org/id/metropolitan-district-council/wolverhampton","WWW.ARGOS.CO.UK","36.62","Head of Service - LAC","5310","Equipment - Purchase","02/06/2017"
"Wolverhampton City Council","http://opendatacommunities.org/id/metropolitan-district-council/wolverhampton","PAYPAL  GRADKOINTER","22.00","Environmental Health - Pub Prot - Gen","5047","Equipment - Purchase","02/06/2017"
"Wolverhampton City Council","http://opendatacommunities.org/id/metropolitan-district-council/wolverhampton","TRAINING INFORMATION C","575.00","Civic Halls Non Direct Management A/C","7399","Training Expenses","02/06/2017"
"Wolverhampton City Council","http://opendatacommunities.org/id/metropolitan-district-council/wolverhampton","TRAINLINE","-108.20","CIN/CP Social Work Unit - Area 4","4112","Public Transport","02/06/2017"
"Wolverhampton City Council","http://opendatacommunities.org/id/metropolitan-district-council/wolverhampton","Trainline","265.71","CIN/CP Social Work Unit - Area 8","4112","Public Transport","02/06/2017"
"Wolverhampton City Council","http://opendatacommunities.org/id/metropolitan-district-council/wolverhampton","RAPID ELECTRONICS","47.20","Technical Material","5732","Equipment - Purchase","02/06/2017"
"Wolverhampton City Council","http://opendatacommunities.org/id/metropolitan-district-council/wolverhampton","HUGHES","220.00","LAC Transitions Team","5732","Client Allowances","02/06/2017"
"Wolverhampton City Council","http://opendatacommunities.org/id/metropolitan-district-council/wolverhampton","Virgin Trains","29.00","Corporate Procurement Unit","4112","Public Transport","02/06/2017"
"Wolverhampton City Council","http://opendatacommunities.org/id/metropolitan-district-council/wolverhampton","Virgin Trains","216.00","Corporate Procurement Unit","4112","Public Transport","02/06/2017"
"Wolverhampton City Council","http://opendatacommunities.org/id/metropolitan-district-council/wolverhampton","WWW.MDNSUPPLIES.CO.UK","96.82","Delivery & OCE Development","5085","Equipment - Purchase","02/06/2017"
"Wolverhampton City Council","http://opendatacommunities.org/id/metropolitan-district-council/wolverhampton","HM PASSPORT OFFICE","92.00","LAC Team","9399","Financial Assistance In Exceptional Circ","02/06/2017"
"Wolverhampton City Council","http://opendatacommunities.org/id/metropolitan-district-council/wolverhampton","HUGHES","400.00","LAC Transitions Team","5732","Equipment - Purchase","02/06/2017"
"Wolverhampton City Council","http://opendatacommunities.org/id/metropolitan-district-council/wolverhampton","Virgin Trains","102.10","Corporate Procurement Unit","4112","Public Transport","02/06/2017"
"Wolverhampton City Council","http://opendatacommunities.org/id/metropolitan-district-council/wolverhampton","AMAZON.CO.UK","12.00","Headstart Phase 3","5999","Books","02/06/2017"
"Wolverhampton City Council","http://opendatacommunities.org/id/metropolitan-district-council/wolverhampton","CANARY CARE","30.00","Telecare","5712","Equipment - Purchase","02/06/2017"
"Wolverhampton City Council","http://opendatacommunities.org/id/metropolitan-district-council/wolverhampton","WWW.ARGOS.CO.UK","256.92","CIN/CP Social Work Unit - Area 2","5310","Equipment - Purchase","02/06/2017"
"Wolverhampton City Council","http://opendatacommunities.org/id/metropolitan-district-council/wolverhampton","VDU01 HOTEL","120.00","Hostels / Outreach","7011","Services - Supplies & Services to users","02/06/2017"
"Wolverhampton City Council","http://opendatacommunities.org/id/metropolitan-district-council/wolverhampton","CUMMINGS BROTHERS LOCK","5.00","Cleaning of Buildings - General","7399","Equipment - Purchase","02/06/2017"
"Wolverhampton City Council","http://opendatacommunities.org/id/metropolitan-district-council/wolverhampton","TELFORD HOTEL","9.17","CIN/CP Social Work Unit - Area 7","7011","Services - Supplies & Services to users","02/06/2017"
"Wolverhampton City Council","http://opendatacommunities.org/id/metropolitan-district-council/wolverhampton","BOOTS","6.00","Transportation General","5912","Toilet Requisites","02/06/2017"
"Wolverhampton City Council","http://opendatacommunities.org/id/metropolitan-district-council/wolverhampton","Trainline","67.63","Research & Development","4112","Public Transport","02/06/2017"
"Wolverhampton City Council","http://opendatacommunities.org/id/metropolitan-district-council/wolverhampton","WWW.MAGRINI.CO.UK","20.45","Statutory Services (10RM)","5072","Equipment - Purchase","02/06/2017"
"Wolverhampton City Council","http://opendatacommunities.org/id/metropolitan-district-council/wolverhampton","TELFORD HOTEL","66.67","CIN/CP Social Work Unit - Area 7","7011","Services - Supplies & Services to users","01/06/2017"
"Wolverhampton City Council","http://opendatacommunities.org/id/metropolitan-district-council/wolverhampton","TESCO STORES 5397","4.20","EIP Locality 1","5411","Provisions (Not for resale)","01/06/2017"
"Wolverhampton City Council","http://opendatacommunities.org/id/metropolitan-district-council/wolverhampton","ARGOS RETAIL GROUP","55.14","LAC Transitions Team","5310","Client Allowances","01/06/2017"
"Wolverhampton City Council","http://opendatacommunities.org/id/metropolitan-district-council/wolverhampton","Amazon UK Marketplace",".19","Technical Support","5942","Books","01/06/2017"
"Wolverhampton City Council","http://opendatacommunities.org/id/metropolitan-district-council/wolverhampton","AMAZON UK RETAIL AMAZO","82.47","Global Budgets","5999","Equipment - Purchase","01/06/2017"
"Wolverhampton City Council","http://opendatacommunities.org/id/metropolitan-district-council/wolverhampton","CUMMINGS BROTHERS LOCK","5.00","Global Budgets","7399","Equipment - Purchase","01/06/2017"
"Wolverhampton City Council","http://opendatacommunities.org/id/metropolitan-district-council/wolverhampton","FACEBK 5BJCJBAF92","33.21","Audience Development","7311","Marketing \ Non-staff advertising","01/06/2017"
"Wolverhampton City Council","http://opendatacommunities.org/id/metropolitan-district-council/wolverhampton","FACEBK 2BJCJBAF92","116.64","Audience Development","7311","Marketing \ Non-staff advertising","01/06/2017"
"Wolverhampton City Council","http://opendatacommunities.org/id/metropolitan-district-council/wolverhampton","TICKET OFFICE-INTE","30.00","CIN/CP Social Work Unit - Area 5","7997","Educ Trips, Holidays, Outings, Activity","01/06/2017"
"Wolverhampton City Council","http://opendatacommunities.org/id/metropolitan-district-council/wolverhampton","Trainline","122.09","CIN/CP Social Work Unit - Area 4","4112","Public Transport","01/06/2017"
"Wolverhampton City Council","http://opendatacommunities.org/id/metropolitan-district-council/wolverhampton","FACEBK 8AUMUCEAR2","69.29","Communications & Marketing - General","7311","Marketing \ Non-staff advertising","01/06/2017"
"Wolverhampton City Council","http://opendatacommunities.org/id/metropolitan-district-council/wolverhampton","FACEBK TDGXHBWA82","20.45","Communications & Marketing - General","7311","Marketing \ Non-staff advertising","01/06/2017"
"Wolverhampton City Council","http://opendatacommunities.org/id/metropolitan-district-council/wolverhampton","FACEBK SDGXHBWA82","89.55","Communications & Marketing - General","7311","Marketing \ Non-staff advertising","01/06/2017"
"Wolverhampton City Council","http://opendatacommunities.org/id/metropolitan-district-council/wolverhampton","WILKO RETAIL LIMIT","5.95","EIP Locality 5","5722","Provisions (Not for resale)","01/06/2017"
"Wolverhampton City Council","http://opendatacommunities.org/id/metropolitan-district-council/wolverhampton","Trainline","38.56","Research & Development","4112","Public Transport","01/06/2017"
"Wolverhampton City Council","http://opendatacommunities.org/id/metropolitan-district-council/wolverhampton","Amazon UK Marketplace","38.77","Headstart Phase 3","5942","Books","01/06/2017"
"Wolverhampton City Council","http://opendatacommunities.org/id/metropolitan-district-council/wolverhampton","Amazon EU","41.24","Headstart Phase 3","5969","Books","01/06/2017"
"Wolverhampton City Council","http://opendatacommunities.org/id/metropolitan-district-council/wolverhampton","Amazon UK Marketplace","13.10","Headstart Phase 3","5942","Books","01/06/2017"
"Wolverhampton City Council","http://opendatacommunities.org/id/metropolitan-district-council/wolverhampton","Amazon UK Marketplace","26.09","Headstart Phase 3","5942","Books","01/06/2017"
"Wolverhampton City Council","http://opendatacommunities.org/id/metropolitan-district-council/wolverhampton","Amazon UK Marketplace","2.54","Headstart Phase 3","5942","Books","01/06/2017"
"Wolverhampton City Council","http://opendatacommunities.org/id/metropolitan-district-council/wolverhampton","WM MORRISON 024","63.39","Ernest Bold Court","5411","Provisions (Not for resale)","01/06/2017"
"Wolverhampton City Council","http://opendatacommunities.org/id/metropolitan-district-council/wolverhampton","VDU01 HOTEL","109.17","CIN/CP Social Work Unit - Area 7","7011","Services - Supplies & Services to users","01/06/2017"
"Wolverhampton City Council","http://opendatacommunities.org/id/metropolitan-district-council/wolverhampton","REGISTRARS OFFICE","10.00","Adoption and Residence Team & Allowances","8299","Services - Fees and Charges","01/06/2017"
